Expenditure Date,Department,Beneficiary,Summary of purpose of expenditure,Merchant Category,Amount (�),Reference
30/04/2018,Severn Park,Gloucestershire County Council,Contribution re; Severn Park Training,Severn Park Equalisation Costs,"273,733.25",0060058881,181901,000005,AE25
10/04/2018,Vehicle Wash Down/Foam Trg,J T T Contracting  Ltd,Various - Vehicle Washdown & CAFs,Contract works,"161,343.75",0070034483,181901,000001,YB03
06/04/2018,Fire Headquarters,East Devon District Council,SHQ - Rates 01.04.18 to 01.04.19,Non-Domestic Rates,"127,225.87",0060058639,181901,000004,DD03
10/04/2018,Vehicle Wash Down/Foam Trg,J T T Contracting  Ltd,Various - Vehicle Washdown & CAFs,Contract works,"119,660.49",0070034484,181901,000001,YB03
06/04/2018,ICT Delivery,Airbus (Astrium),Annual Maintenance Charges for MDT,ICT Mobile Data Terminal Servi,"104,283.00",0072013049,181901,000003,HA30
23/04/2018,ICT Delivery,Department for Communities & Local,Airwave Service Fees (January) -,ICT Radio Network Service,"100,172.45",0072013155,181901,000006,HF01
10/04/2018,Vehicle wash units,Dutypoint Systems,Various - Vehicle Washing Units,Contract works,"93,300.00",0070034479,181901,000001,YB03
06/04/2018,Academy Management,East Devon District Council,Airport Academy - Rates 01.04.18 to,Non-Domestic Rates,"84,796.00",0030029106,181901,000004,DD03
06/04/2018,Taunton Group,Taunton Deane Borough Council,Taunton Fire Station,Non-Domestic Rates,"76,415.00",0080012285,181901,000004,DD03
24/04/2018,Torquay,Torbay Council,Torquay yearly rates 18/19,Non-Domestic Rates,"68,034.00",0015014995,181901,000004,DD03
05/04/2018,Middlemoor Fire Station,Exeter City Council,Stn 59 Rates 2018-19,Non-Domestic Rates,"68,034.00",0020015600,181901,000002,DD03
11/04/2018,Network Control Systems,Dorset & Wiltshire Fire and Rescue,Deployment of R1 software release,ICT Application Services (Oth),"63,979.00",0060058618,181901,000001,HA22
05/04/2018,Operational Assets Management,Allstar Business Solutions,Fuel March 2018,Fuel (Petrol Etc),"58,008.11",0040013986,181901,000002,FC01
09/04/2018,Academy Management,Plymouth City Council,STC Non domestic rates 2018/19 call off,Non-Domestic Rates,"54,923.62",0025017289,181901,000012,DD03
05/04/2018,Danes Castle,Exeter City Council,Stn 32 Rates 2018-19,Non-Domestic Rates,"54,328.00",0020015614,181901,000002,DD03
09/04/2018,Greenbank,Plymouth City Council,STN50 Non domestic rates 2018/19 call,Non-Domestic Rates,"51,765.00",0025017280,181901,000004,DD03
05/04/2018,Exmouth,East Devon District Council,Stn 33 Rates 2018-19,Non-Domestic Rates,"43,384.00",0020015613,181901,000002,DD03
09/04/2018,Plympton,Plymouth City Council,STN47 Non domestic rates 2018/19 call,Non-Domestic Rates,"42,718.38",0025017289,181901,000007,DD03
11/04/2018,LRP WA60FGE,Emergency One (UK) Ltd,Incident Support Unit 01 - Stage One -,Vehicle purchase,"38,538.50",0040014010,181901,000001,YD02
10/04/2018,Barnstaple,North Devon District Council,Stn 01 Rates 2018-19,Non-Domestic Rates,"36,442.15",0010012475,181901,000009,DD03
11/04/2018,Yeovil,South Somerset District Council,Rates for Yeovil Fire Station,Non-Domestic Rates,"36,347.94",0080012320,181901,000004,DD03
09/04/2018,Academy Management,Plymouth City Council,Comm training Non domestic rates,Non-Domestic Rates,"35,890.40",0025017277,181901,000009,DD03
06/04/2018,Bridgwater,Sedgemoor District Council,Bridgwater,Non-Domestic Rates,"32,045.00",0080012287,181901,000004,DD03
09/04/2018,Crownhill,Plymouth City Council,STN49 Non domestic rates 2018/19 call,Non-Domestic Rates,"31,221.66",0025017278,181901,000009,DD03
06/04/2018,Chelston Vehicle Engineering,Taunton Deane Borough Council,Chelston Workshops,Non-Domestic Rates,"30,319.50",0080012286,181901,000005,DD03
04/04/2018,Harmonisation Equipment,Delta Fire Limited,50 x Fognail Set A Each set consisting,Operational Equipment,"28,000.00",0040013978,181901,000005,HC00
11/04/2018,Human Resources,DCC HR One,HR One Payroll Contract payment -,Personnel Services,"27,442.08",0060058624,181901,000005,LA03
12/04/2018,Response Policy & Specialist C,CFOA (Services) Ltd,2018-19 Central Programme Office element,Partnerships,"25,000.00",0060058688,181901,000006,HJ03
09/04/2018,West Devon,Plymouth City Council,ADMIN Non domestic rates 2018/19 call,Non-Domestic Rates,"24,410.50",0025017289,181901,000006,DD03
09/04/2018,Severn Park,Gloucestershire County Council,SP - DSFRS Apportioned 2017-18 Costs,Severn Park Equalisation Costs,"23,611.36",0030029112,181901,000007,AE25
05/04/2018,Crediton,Mid Devon District Council,Stn 38 Rates 2018-19,Non-Domestic Rates,"21,480.00",0020015608,181901,000002,DD03
06/04/2018,USAR Team,East Devon District Council,Station 60 - Rates 01.04.18 to 01.04.19,Non-Domestic Rates,"21,120.00",0060058638,181901,000006,DD03
10/04/2018,Mobile data terminals in appli,Centerprise,Fixed MDT (Panasonic CF-33 -,Miscellaneous Fees,"20,820.00",0072013080,181901,000001,YC09
09/04/2018,Light Vehicle Management,Lex Autolease Ltd,BK17 AOA/JTZ/JUA/JVC/KCV,Lease Car Contribution Admin,"20,528.28",0040013994,181901,000005,FE72
16/04/2018,Human Resources,Industrial Medical & Safety Services Ltd,March Invoice for OH services provided,Occupational Health Unit,"20,035.03",0060058733,181901,000005,LA09
10/04/2018,Teignmouth,Teignbridge District Council,Teignmouth Rates 18/19,Non-Domestic Rates,"19,680.00",0015014979,181901,000004,DD03
30/04/2018,Fire Headquarters,Lancer Scott,SHQ - The creation of a new meeting,Planned Maint Proj Contractor,"19,498.27",0070034586,181901,000005,DA05
12/04/2018,Paignton,Torbay Council,Paignton yearly rates 18/19,Non-Domestic Rates,"19,324.62",0015014993,181901,000004,DD03
18/04/2018,Salcombe - extension/refurbish,Cruse & Bridgeman,Salcombe - Extension and Alterations,Contract works,"18,962.23",0070034513,181901,000003,YB03
11/04/2018,RIV 1-15 - RTC,Clan Tools & Plant Ltd,4 x Rescue Tool set comprising: Lukas,Furniture/Equip Purchase,"18,578.00",0040014002,181901,000004,YD01
10/04/2018,Chard,South Somerset District Council,Rates for Chard Fire Station,Non-Domestic Rates,"17,880.00",0080012298,181901,000002,DD03
10/04/2018,Honiton,J T T Contracting  Ltd,Honiton - Resurfacing works,Planned Maint Proj Contractor,"16,972.80",0070034482,181901,000005,DA05
30/04/2018,Burnham-on-Sea heating improve,Skinner Construction Limited,Burnham on Sea - New Muster Bay &,Contract works,"16,278.87",0070034577,181901,000003,YB03
09/04/2018,Camels Head,Plymouth City Council,STN48 Non domestic rates 2018/19 call,Non-Domestic Rates,"15,381.60",0025017277,181901,000006,DD03
06/04/2018,Burnham-on-Sea,Sedgemoor District Council,Burnham on Sea,Non-Domestic Rates,"14,880.00",0080012290,181901,000004,DD03
10/04/2018,Bideford,Torridge District Council,Stn 04 Rates 2018-19,Non-Domestic Rates,"14,787.54",0010012472,181901,000004,DD03
10/04/2018,Ilfracombe,North Devon District Council,Stn 02 Rates 2018-19,Non-Domestic Rates,"14,451.46",0010012474,181901,000004,DD03
09/04/2018,Tavistock,West Devon Borough Council,STN57 Non domestic rates 2018/19 call,Non-Domestic Rates,"14,451.46",0025017285,181901,000004,DD03
06/04/2018,Williton,West Somerset Council,Williton,Non-Domestic Rates,"14,400.00",0080012291,181901,000004,DD03
10/04/2018,Wells,Mendip District Council,rATES FOR YEAR FOR wELLS FIRE STATION,Non-Domestic Rates,"14,400.00",0080012304,181901,000002,DD03
10/04/2018,Dartmouth,South Hams District Council,Dartmouth Rates 18/19,Non-Domestic Rates,"14,040.00",0015014975,181901,000006,DD03
09/04/2018,Crownhill Vehicle Engineering,Plymouth City Council,WKSHPS Non domestic rates 2018/19 call,Non-Domestic Rates,"13,380.71",0025017278,181901,000004,DD03
10/04/2018,Wincanton,South Somerset District Council,Rates for Wincanton Fire Station,Non-Domestic Rates,"13,320.00",0080012301,181901,000002,DD03
20/04/2018,Insurance & Risk,Regis Broking Ltd,Insurance Policy,Insurance Premiums,"13,216.00",0060058787,181901,000002,JC01
10/04/2018,Martock,South Somerset District Council,Rates for Martock Fire Station,Non-Domestic Rates,"13,200.00",0080012297,181901,000002,DD03
09/04/2018,ICT Delivery,Multitone Electronics plc,1 x Maintenance agreement MEP/15/01,ICTMobs Service Charges,"12,969.82",0072013124,181901,000005,HF19
05/04/2018,Sidmouth,East Devon District Council,Stn 43 Rates 2018-19,Non-Domestic Rates,"12,939.10",0020015603,181901,000002,DD03
06/04/2018,Fire Headquarters,East Devon District Council,P/30226874(2018/19),Non-Domestic Rates,"12,723.00",0060058639,181902,000002,DD03
06/04/2018,Fire Headquarters,East Devon District Council,P/30226874(2018/19),Non-Domestic Rates,"12,723.00",0060058639,181903,000002,DD03
06/04/2018,Fire Headquarters,East Devon District Council,P/30226874(2018/19),Non-Domestic Rates,"12,723.00",0060058639,181904,000002,DD03
06/04/2018,Fire Headquarters,East Devon District Council,P/30226874(2018/19),Non-Domestic Rates,"12,723.00",0060058639,181905,000002,DD03
06/04/2018,Fire Headquarters,East Devon District Council,P/30226874(2018/19),Non-Domestic Rates,"12,723.00",0060058639,181906,000002,DD03
06/04/2018,Fire Headquarters,East Devon District Council,P/30226874(2018/19),Non-Domestic Rates,"12,723.00",0060058639,181907,000002,DD03
06/04/2018,Fire Headquarters,East Devon District Council,P/30226874(2018/19),Non-Domestic Rates,"12,723.00",0060058639,181908,000002,DD03
06/04/2018,Fire Headquarters,East Devon District Council,P/30226874(2018/19),Non-Domestic Rates,"12,723.00",0060058639,181909,000002,DD03
06/04/2018,Fire Headquarters,East Devon District Council,P/30226874(2018/19),Non-Domestic Rates,"12,723.00",0060058639,181910,000002,DD03
06/04/2018,Fire Headquarters,East Devon District Council,P/30226874(2018/19),Non-Domestic Rates,"12,718.87",0060058639,181901,000005,DD03
11/04/2018,National Procurement Project,West Midlands Fire Service,Salary & Expenses Estimate,Agency Staff Admin,"12,659.20",0060058627,181901,000001,AW19
10/04/2018,Estates,Kenex Engineering,Various - Drill Tower Repairs,Planned Maint Proj Contractor,"12,650.00",0070034480,181901,000005,DA05
10/04/2018,Okehampton,West Devon Borough Council,Stn 13 Rates 2018-19,Non-Domestic Rates,"12,434.97",0020015627,181901,000004,DD03
10/04/2018,Crewkerne,South Somerset District Council,Rates for Crewkerne Fire Station,Non-Domestic Rates,"12,360.00",0080012299,181901,000002,DD03
10/04/2018,Glastonbury Fire station,Mendip District Council,Rates for Glastonbury Fire Station,Non-Domestic Rates,"12,240.00",0080012303,181901,000002,DD03
10/04/2018,Newton Abbot,Teignbridge District Council,Newton Abbot rates 18/19,Non-Domestic Rates,"12,098.89",0015014978,181901,000004,DD03
10/04/2018,Totnes,South Hams District Council,Totnes rates 18/19,Non-Domestic Rates,"12,098.89",0015014980,181901,000004,DD03
05/04/2018,Honiton,East Devon District Council,Stn 40 Rates 2018-19,Non-Domestic Rates,"11,762.82",0020015606,181901,000002,DD03
24/04/2018,Democratic Services,LGA Association,DSFRS LGA subscription 2019-19 ref,Publications/Subscriptions,"11,344.62",0060058811,181901,000005,JA04
10/04/2018,Bovey Tracey,Teignbridge District Council,Bovey Tracey Rates 18/19,Non-Domestic Rates,"11,258.69",0015014971,181901,000004,DD03
12/04/2018,Information,CFOA (Services) Ltd,2018-19 Professional Partnership Fee,Publications/Subscriptions,"10,982.00",0060058688,181901,000005,JA04
05/04/2018,Tiverton,Mid Devon District Council,Stn 44 Rates 2018-19,Non-Domestic Rates,"10,922.61",0020015602,181901,000004,DD03
18/04/2018,ICT Delivery,Idhammar Systems Ltd,Incorrectly raised and paid against the,ICT Fleet Management Sys Supp,"10,886.69",0060058758,181901,000005,HA49
30/04/2018,Budleigh Salterton,DJH Roofing Ltd,Budeligh Salterton - Roof Repairs,Planned Maint Proj Contractor,"10,579.74",0070034610,181901,000005,DA05
06/04/2018,Minehead,West Somerset Council,Minehead,Non-Domestic Rates,"10,560.00",0080012283,181901,000004,DD03
10/04/2018,Somerton,South Somerset District Council,Rates for Somerton Fire Station,Non-Domestic Rates,"10,560.00",0080012300,181901,000002,DD03
09/04/2018,Plymstock,Plymouth City Council,STN51 Non domestic rates 2018/19 call,Non-Domestic Rates,"10,440.00",0025017279,181901,000004,DD03
09/04/2018,Yelverton,West Devon Borough Council,STN58 Non domestic rates 2018/19 call,Non-Domestic Rates,"10,440.00",0025017283,181901,000004,DD03
25/04/2018,National Procurement Project,London Fire&Emergency Planning Authority,Services of Agency Worker,Agency Staff Admin,"10,000.00",0060058863,181901,000001,AW19
30/04/2018,National Procurement Project,Nottinghamshire Fire & Rescue Service,Services of Agency Worker,Agency Staff Admin,"10,000.00",0060058877,181901,000001,AW19
11/04/2018,LRP WA60FGE,Emergency One (UK) Ltd,Incident Support Unit 01 - Stage Two -,Vehicle purchase,"9,950.94",0040014010,181901,000002,YD02
09/04/2018,Ivybridge,South Hams District Council,STN53 Non domestic rates 2018/19 call,Non-Domestic Rates,"9,840.00",0025017281,181901,000004,DD03
10/04/2018,Frome,Mendip District Council,Rates for Frome Fire Station,Non-Domestic Rates,"9,746.34",0080012302,181901,000002,DD03
10/04/2018,Shepton Mallet,Mendip District Council,RATES FOR SHEPTON MALLET FIRE STATION,Non-Domestic Rates,"9,746.34",0080012306,181901,000002,DD03
13/04/2018,Fire Control,Lancer Scott,Fire Control - Security Wall,Planned Maint Proj Contractor,"9,603.75",0070034489,181901,000005,DA05
05/04/2018,Ottery St Mary,East Devon District Council,Stn 41 Rates 2018-19,Non-Domestic Rates,"9,480.00",0020015605,181901,000002,DD03
20/04/2018,Organisational Dev Leadership,Innovation Central,ILM 5 April,Uniformed Development Training,"9,250.00",0030029147,181901,000005,AE09
30/04/2018,Fire Headquarters,Lancer Scott,SHQ Somerset House - M&E Canteen strip,Planned Maint Proj Contractor,"9,182.64",0070034587,181901,000005,DA05
09/04/2018,Light Vehicle Management,Lex Autolease Ltd,LJ17 CEV/CFU/CFV/CFX/CFY/CFZ/CGE,Lease Car Contribution Admin,"9,034.20",0040014000,181901,000006,FE72
05/04/2018,Seaton,East Devon District Council,Stn 42 Rates 2018-19,Non-Domestic Rates,"8,609.38",0020015604,181901,000002,DD03
06/04/2018,Academy Management,East Devon District Council,P/30323157(2018/19),Non-Domestic Rates,"8,480.00",0030029106,181902,000002,DD03
06/04/2018,Academy Management,East Devon District Council,P/30323157(2018/19),Non-Domestic Rates,"8,480.00",0030029106,181903,000002,DD03
06/04/2018,Academy Management,East Devon District Council,P/30323157(2018/19),Non-Domestic Rates,"8,480.00",0030029106,181904,000002,DD03
06/04/2018,Academy Management,East Devon District Council,P/30323157(2018/19),Non-Domestic Rates,"8,480.00",0030029106,181905,000002,DD03
06/04/2018,Academy Management,East Devon District Council,P/30323157(2018/19),Non-Domestic Rates,"8,480.00",0030029106,181906,000002,DD03
06/04/2018,Academy Management,East Devon District Council,P/30323157(2018/19),Non-Domestic Rates,"8,480.00",0030029106,181907,000002,DD03
06/04/2018,Academy Management,East Devon District Council,P/30323157(2018/19),Non-Domestic Rates,"8,480.00",0030029106,181908,000002,DD03
06/04/2018,Academy Management,East Devon District Council,P/30323157(2018/19),Non-Domestic Rates,"8,480.00",0030029106,181909,000002,DD03
06/04/2018,Academy Management,East Devon District Council,P/30323157(2018/19),Non-Domestic Rates,"8,480.00",0030029106,181910,000002,DD03
06/04/2018,Academy Management,East Devon District Council,P/30323157(2018/19),Non-Domestic Rates,"8,476.00",0030029106,181901,000005,DD03
13/04/2018,ICT Delivery,AV Parts Master Ltd,20 x Epson EB-970 projectors,ICT Desktop Service,"8,280.00",0072013134,181901,000005,HA20
05/04/2018,ICT Delivery,EE Limited,50 x Samsung Galaxy J3 (2017) @165 =,ICT Mobile Telephony Service,"8,250.00",0072013123,181901,000006,HF29
06/04/2018,Cheddar Fire Station,Sedgemoor District Council,Cheddar,Non-Domestic Rates,"8,178.91",0080012289,181901,000004,DD03
20/04/2018,Organisational Dev Leadership,Innovation Central,Outstanding ILM Reg fees,Uniformed Development Training,"8,170.00",0030029147,181901,000006,AE09
09/04/2018,Princetown,West Devon Borough Council,STN56 Non domestic rates 2018/19 call,Non-Domestic Rates,"8,131.22",0025017284,181901,000004,DD03
09/04/2018,RIV Equipment,Exeter Tool Shop,45 x 18v SDS Plus Brushless Drill Body,Water Equipment,"7,865.00",0040013990,181901,000005,HC15
04/04/2018,ICT Delivery,Maintel Europe Ltd,Switch Software upgrade for Avaya,ICT Network Service,"7,862.50",0072013118,181901,000005,HF06
12/04/2018,Community Safety Prevention,CFOA (Services) Ltd,2018-19 Children and Young People,Partnerships,"7,750.00",0060058688,181901,000008,HJ03
10/04/2018,Witheridge,North Devon District Council,Stn 46 Rates 2018-19,Non-Domestic Rates,"7,748.44",0010012460,181901,000004,DD03
10/04/2018,Chagford,West Devon Borough Council,Chagford rates 18/19,Non-Domestic Rates,"7,748.44",0015014974,181901,000006,DD03
12/04/2018,Organisational Dev Leadership,The Institute of Fire Engineers,IFE March 2018 exams,Talent Pool,"7,642.00",0060058717,181901,000002,AE10
06/04/2018,Taunton Group,Taunton Deane Borough Council,P/8000067251(2018/19),Non-Domestic Rates,"7,642.00",80012285,181902,000002,DD03
06/04/2018,Taunton Group,Taunton Deane Borough Council,P/8000067251(2018/19),Non-Domestic Rates,"7,642.00",0080012285,181903,000002,DD03
06/04/2018,Taunton Group,Taunton Deane Borough Council,P/8000067251(2018/19),Non-Domestic Rates,"7,642.00",0080012285,181904,000002,DD03
06/04/2018,Taunton Group,Taunton Deane Borough Council,P/8000067251(2018/19),Non-Domestic Rates,"7,642.00",0080012285,181905,000002,DD03
06/04/2018,Taunton Group,Taunton Deane Borough Council,P/8000067251(2018/19),Non-Domestic Rates,"7,642.00",0080012285,181906,000002,DD03
06/04/2018,Taunton Group,Taunton Deane Borough Council,P/8000067251(2018/19),Non-Domestic Rates,"7,642.00",0080012285,181907,000002,DD03
06/04/2018,Taunton Group,Taunton Deane Borough Council,P/8000067251(2018/19),Non-Domestic Rates,"7,642.00",0080012285,181908,000002,DD03
06/04/2018,Taunton Group,Taunton Deane Borough Council,P/8000067251(2018/19),Non-Domestic Rates,"7,642.00",0080012285,181909,000002,DD03
06/04/2018,Taunton Group,Taunton Deane Borough Council,P/8000067251(2018/19),Non-Domestic Rates,"7,642.00",0080012285,181910,000002,DD03
06/04/2018,Taunton Group,Taunton Deane Borough Council,P/8000067251(2018/19),Non-Domestic Rates,"7,637.00",0080012285,181901,000006,DD03
06/04/2018,Dulverton,West Somerset Council,Dulverton,Non-Domestic Rates,"7,461.46",0080012282,181901,000006,DD03
06/04/2018,60 Crownhill Building,Plymouth City Council,60 Crownhill Road - Rates 01.04.18 to,Non-Domestic Rates,"7,320.00",0070034465,181901,000004,DD03
10/04/2018,Woolacombe,North Devon District Council,Stn 16 Rates 2018-19,Non-Domestic Rates,"7,317.97",0010012461,181901,000004,DD03
04/04/2018,Harmonisation Equipment,Delta Fire Limited,50 x Delta Fog Hammer and strap Product,Operational Equipment,"7,250.00",0040013978,181901,000006,HC00
10/04/2018,Lynton,North Devon District Council,Stn 11 Rates 2018-19,Non-Domestic Rates,"7,174.48",0010012464,181901,000004,DD03
10/04/2018,Moretonhampstead,Teignbridge District Council,Moretonhampstead rates 18/19,Non-Domestic Rates,"7,174.48",0015014977,181901,000004,DD03
12/04/2018,Organisational Dev Leadership,The Institute of Fire Engineers,IFE March 2018 exams,Talent Pool,"7,131.00",0030029124,181901,000002,AE10
13/04/2018,ICT Delivery,Modern Mindset Ltd,Modern.gov Annual Maintenance & Support,ICT Application Services (Oth),"7,010.00",0072013136,181901,000005,HA22
04/04/2018,Light Vehicle Management,Ministry of Defence,RENEWAL OF MANAGED DISPOSAL SERVICE,External Prof Support/Advice,"7,000.00",0040013932,181901,000003,HJ02
11/04/2018,Fire Headquarters,Lancer Scott,Somerset House - Carpeting,Planned Maint Proj Contractor,"6,964.00",0070034471,181901,000005,DA05
23/04/2018,Community Safety Prevention,Doug Osborne Consulting,4 Day Level 1 ESR Course,Non-Uniformed Training,"6,891.39",0060058798,181901,000002,AE14
24/04/2018,Torquay,Torbay Council,P/900736(2018/19),Non-Domestic Rates,"6,807.00",0015014995,181901,000005,DD03
05/04/2018,Middlemoor Fire Station,Exeter City Council,P/700225761(2018/19),Non-Domestic Rates,"6,807.00",0020015600,181901,000005,DD03
24/04/2018,Torquay,Torbay Council,P/900736(2018/19),Non-Domestic Rates,"6,803.00",0015014995,181902,000002,DD03
24/04/2018,Torquay,Torbay Council,P/900736(2018/19),Non-Domestic Rates,"6,803.00",0015014995,181903,000002,DD03
24/04/2018,Torquay,Torbay Council,P/900736(2018/19),Non-Domestic Rates,"6,803.00",0015014995,181904,000002,DD03
24/04/2018,Torquay,Torbay Council,P/900736(2018/19),Non-Domestic Rates,"6,803.00",0015014995,181905,000002,DD03
24/04/2018,Torquay,Torbay Council,P/900736(2018/19),Non-Domestic Rates,"6,803.00",0015014995,181906,000002,DD03
24/04/2018,Torquay,Torbay Council,P/900736(2018/19),Non-Domestic Rates,"6,803.00",0015014995,181907,000002,DD03
24/04/2018,Torquay,Torbay Council,P/900736(2018/19),Non-Domestic Rates,"6,803.00",0015014995,181908,000002,DD03
24/04/2018,Torquay,Torbay Council,P/900736(2018/19),Non-Domestic Rates,"6,803.00",0015014995,181909,000002,DD03
24/04/2018,Torquay,Torbay Council,P/900736(2018/19),Non-Domestic Rates,"6,803.00",0015014995,181910,000002,DD03
05/04/2018,Middlemoor Fire Station,Exeter City Council,P/700225761(2018/19),Non-Domestic Rates,"6,803.00",0020015600,181902,000002,DD03
05/04/2018,Middlemoor Fire Station,Exeter City Council,P/700225761(2018/19),Non-Domestic Rates,"6,803.00",0020015600,181903,000002,DD03
05/04/2018,Middlemoor Fire Station,Exeter City Council,P/700225761(2018/19),Non-Domestic Rates,"6,803.00",0020015600,181904,000002,DD03
05/04/2018,Middlemoor Fire Station,Exeter City Council,P/700225761(2018/19),Non-Domestic Rates,"6,803.00",0020015600,181905,000002,DD03
05/04/2018,Middlemoor Fire Station,Exeter City Council,P/700225761(2018/19),Non-Domestic Rates,"6,803.00",0020015600,181906,000002,DD03
05/04/2018,Middlemoor Fire Station,Exeter City Council,P/700225761(2018/19),Non-Domestic Rates,"6,803.00",0020015600,181907,000002,DD03
05/04/2018,Middlemoor Fire Station,Exeter City Council,P/700225761(2018/19),Non-Domestic Rates,"6,803.00",0020015600,181908,000002,DD03
05/04/2018,Middlemoor Fire Station,Exeter City Council,P/700225761(2018/19),Non-Domestic Rates,"6,803.00",0020015600,181909,000002,DD03
05/04/2018,Middlemoor Fire Station,Exeter City Council,P/700225761(2018/19),Non-Domestic Rates,"6,803.00",0020015600,181910,000002,DD03
10/04/2018,Dawlish,Teignbridge District Council,Dawlish  rates 18/19,Non-Domestic Rates,"6,761.46",0015014976,181901,000004,DD03
05/04/2018,Axminster,East Devon District Council,Stn 34 Rates 2018-19,Non-Domestic Rates,"6,600.53",0020015612,181901,000002,DD03
12/04/2018,Research & Development,CFOA (Services) Ltd,2018-19 Research & Development element,Partnerships,"6,559.00",0060058688,181901,000007,HJ03
05/04/2018,Uniforms PPE,W M Sugden & Sons Ltd,MALE CARGO TROUSERS (BLACK),Workwear,"6,504.00",0085016722,181901,000003,HG03
17/04/2018,ICT Delivery,TMI Systems Limited,Verto Annual Support and Hosting,ICT BI Systems Support Service,"6,500.00",0072013140,181901,000005,HA45
04/04/2018,Uniforms PPE,W M Sugden & Sons Ltd,MALE CARGO TROUSERS (BLACK),Workwear,"6,495.00",0085016715,181901,000002,HG03
06/04/2018,Nether Stowey,Sedgemoor District Council,Nether Stowey,Non-Domestic Rates,"6,470.93",0080012281,181901,000004,DD03
05/04/2018,Bampton,Mid Devon District Council,Stn 35 Rates 2018-19,Non-Domestic Rates,"6,457.03",0020015611,181901,000002,DD03
10/04/2018,North Tawton,West Devon Borough Council,Stn 12 Rates 2018-19,Non-Domestic Rates,"6,457.03",0020015625,181901,000004,DD03
10/04/2018,Buckfastleigh,Teignbridge District Council,Buckfastleigh rates 18/19,Non-Domestic Rates,"6,313.54",0015014973,181901,000006,DD03
10/04/2018,Street Fire Station,Mendip District Council,RATES FOR YEAR FOR STREET FIRE STATION,Non-Domestic Rates,"6,313.54",0080012305,181901,000002,DD03
09/04/2018,RIV Equipment,Exeter Tool Shop,45 x 18v SDS Plus Brushless Drill Body,Water Equipment,"6,292.00",0040013991,181901,000005,HC15
18/04/2018,ICT Delivery,Computer Security Technology Ltd,Pulse Add 25 Users simultaneous users,ICT Network Security/Rem Acces,"6,190.00",0072013153,181901,000006,HF09
05/04/2018,Cullompton,Mid Devon District Council,Stn 39 Rates 2018-19,Non-Domestic Rates,"6,026.56",0020015607,181901,000002,DD03
05/04/2018,Chelston Vehicle Engineering,Boc  Ltd,Rental Medical Oxygen CD Size Cylinders,Oxygen Cylinders,"5,834.18",0060058631,181901,000006,HC35
05/04/2018,Danes Castle,Exeter City Council,P/700087404(2018/19),Non-Domestic Rates,"5,768.00",20015614,181902,000002,DD03
05/04/2018,Danes Castle,Exeter City Council,P/700087404(2018/19),Non-Domestic Rates,"5,768.00",0020015614,181903,000002,DD03
05/04/2018,Danes Castle,Exeter City Council,P/700087404(2018/19),Non-Domestic Rates,"5,768.00",0020015614,181904,000002,DD03
05/04/2018,Danes Castle,Exeter City Council,P/700087404(2018/19),Non-Domestic Rates,"5,768.00",0020015614,181905,000002,DD03
05/04/2018,Danes Castle,Exeter City Council,P/700087404(2018/19),Non-Domestic Rates,"5,768.00",0020015614,181906,000002,DD03
05/04/2018,Danes Castle,Exeter City Council,P/700087404(2018/19),Non-Domestic Rates,"5,768.00",0020015614,181907,000002,DD03
05/04/2018,Danes Castle,Exeter City Council,P/700087404(2018/19),Non-Domestic Rates,"5,768.00",0020015614,181908,000002,DD03
05/04/2018,Danes Castle,Exeter City Council,P/700087404(2018/19),Non-Domestic Rates,"5,768.00",0020015614,181909,000002,DD03
05/04/2018,Danes Castle,Exeter City Council,P/700087404(2018/19),Non-Domestic Rates,"5,768.00",0020015614,181910,000002,DD03
10/04/2018,South Molton,North Devon District Council,Stn 14 Rates 2018-19,Non-Domestic Rates,"5,739.59",0010012463,181901,000004,DD03
10/04/2018,Braunton,North Devon District Council,Stn 05 Rates 2018-19,Non-Domestic Rates,"5,739.59",0010012471,181901,000004,DD03
09/04/2018,Kingsbridge,South Hams District Council,STN26 Non domestic rates 2018/19 call,Non-Domestic Rates,"5,624.79",0025017286,181901,000004,DD03
30/04/2018,Fire Headquarters,West Country Vending Service Ltd,SHQ - New Beverage Vending Machine,Planned Maint Proj Contractor,"5,589.00",0070034598,181901,000005,DA05
10/04/2018,Castle Cary,South Somerset District Council,Rates for Castle Cary Fire Station,Non-Domestic Rates,"5,567.40",0080012296,181901,000002,DD03
09/04/2018,Modbury,South Hams District Council,STN55 Non domestic rates 2018/19 call,Non-Domestic Rates,"5,548.90",0025017282,181901,000004,DD03
05/04/2018,Colyton,East Devon District Council,Stn 37 Rates 2018-19,Non-Domestic Rates,"5,510.00",0020015609,181901,000002,DD03
06/04/2018,Porlock,West Somerset Council,Porlock,Non-Domestic Rates,"5,510.00",0080012284,181901,000006,DD03
09/04/2018,Academy Management,Plymouth City Council,"P/130203413728534,",Non-Domestic Rates,"5,493.37",0025017289,181901,000010,DD03
09/04/2018,Academy Management,Plymouth City Council,"P/130203413728534,",Non-Domestic Rates,"5,492.25",0025017289,181902,000004,DD03
09/04/2018,Academy Management,Plymouth City Council,"P/130203413728534,",Non-Domestic Rates,"5,492.25",0025017289,181903,000004,DD03
09/04/2018,Academy Management,Plymouth City Council,"P/130203413728534,",Non-Domestic Rates,"5,492.25",0025017289,181904,000004,DD03
09/04/2018,Academy Management,Plymouth City Council,"P/130203413728534,",Non-Domestic Rates,"5,492.25",0025017289,181905,000004,DD03
09/04/2018,Academy Management,Plymouth City Council,"P/130203413728534,",Non-Domestic Rates,"5,492.25",0025017289,181906,000004,DD03
09/04/2018,Academy Management,Plymouth City Council,"P/130203413728534,",Non-Domestic Rates,"5,492.25",0025017289,181907,000004,DD03
09/04/2018,Academy Management,Plymouth City Council,"P/130203413728534,",Non-Domestic Rates,"5,492.25",0025017289,181908,000004,DD03
09/04/2018,Academy Management,Plymouth City Council,"P/130203413728534,",Non-Domestic Rates,"5,492.25",0025017289,181909,000004,DD03
09/04/2018,Academy Management,Plymouth City Council,"P/130203413728534,",Non-Domestic Rates,"5,492.25",0025017289,181910,000004,DD03
12/04/2018,Workshop box van 3 HN63UYA,Alloy Bodies Ltd,WA60 FFU - ALUMINIUM DROPSIDE BODY &,Vehicle purchase,"5,406.00",0055028168,181901,000001,YD02
27/04/2018,Workshop box van 3 HN63UYA,Alloy Bodies Ltd,Original invoice payment was returned.,Vehicle purchase,"5,406.00",0060058870,181901,000001,YD02
20/04/2018,Estates,Integral UK Ltd,Various - Mechanical and Electrical PPM,Planned Serv Maint Wrks Contra,"5,387.96",0070034547,181901,000005,DA06
17/04/2018,HFSC Pilot,Fireblitz Extinguisher Ltd,Standard Equipment,Standard Equipment,"5,250.00",0060058681,181901,000005,HA01
10/04/2018,Brixham,Torbay Council,Brixham rates 18/19,Non-Domestic Rates,"5,245.27",0015014972,181901,000004,DD03
05/04/2018,HFSC Pilot,Fireblitz Extinguisher Ltd,"1,000 F H B 10 Optical smoke alarms @",Standard Equipment,"5,244.75",0060058489,181901,000004,HA01
09/04/2018,Greenbank,Plymouth City Council,P/130201953870715,Non-Domestic Rates,"5,177.00",0025017280,181902,000002,DD03
09/04/2018,Greenbank,Plymouth City Council,P/130201953870715,Non-Domestic Rates,"5,177.00",0025017280,181903,000002,DD03
09/04/2018,Greenbank,Plymouth City Council,P/130201953870715,Non-Domestic Rates,"5,177.00",0025017280,181904,000002,DD03
09/04/2018,Greenbank,Plymouth City Council,P/130201953870715,Non-Domestic Rates,"5,177.00",0025017280,181905,000002,DD03
09/04/2018,Greenbank,Plymouth City Council,P/130201953870715,Non-Domestic Rates,"5,177.00",0025017280,181906,000002,DD03
09/04/2018,Greenbank,Plymouth City Council,P/130201953870715,Non-Domestic Rates,"5,177.00",0025017280,181907,000002,DD03
09/04/2018,Greenbank,Plymouth City Council,P/130201953870715,Non-Domestic Rates,"5,177.00",0025017280,181908,000002,DD03
09/04/2018,Greenbank,Plymouth City Council,P/130201953870715,Non-Domestic Rates,"5,177.00",0025017280,181909,000002,DD03
09/04/2018,Greenbank,Plymouth City Council,P/130201953870715,Non-Domestic Rates,"5,177.00",0025017280,181910,000002,DD03
09/04/2018,Greenbank,Plymouth City Council,P/130201953870715,Non-Domestic Rates,"5,172.00",0025017280,181901,000005,DD03
10/04/2018,Torrington,Torridge District Council,Stn 15 Rates 2018-19,Non-Domestic Rates,"5,165.63",0010012462,181901,000004,DD03
06/04/2018,Wellington,Taunton Deane Borough Council,Wellington,Non-Domestic Rates,"5,108.23",0080012288,181901,000006,DD03
24/04/2018,Organisational Dev Leadership,Innovation Central,Events 1 and 2 W/T recruits,Uniformed Development Training,"5,100.00",0060058813,181901,000005,AE09
27/04/2018,Fire Headquarters,G & E Automatic Equipment Ltd,SHQ - H & S Improvement Works Drying,Planned Maint Proj Contractor,"5,056.00",0070034569,181901,000005,DA05
10/04/2018,Ilminster,South Somerset District Council,Rates for Ilminster Fire Station,Non-Domestic Rates,"4,993.44",0080012294,181901,000004,DD03
24/04/2018,Operational Assets Management,Certas Energy UK Ltd,5000 LTRS DIESEL,Fuel (Petrol Etc),"4,941.50",0040014024,181901,000005,FC01
09/04/2018,ICT Delivery,British Telecommunications Plc,March BT Recurring Charges   4828.80,ICT Fixed Tele Serv Ret/Maint,"4,828.80",0072013126,181901,000007,HF05
09/04/2018,Light Vehicle Management,Lex Autolease Ltd,KU17NZA,Lease Car Contribution Admin,"4,762.93",0040014000,181901,000007,FE72
10/04/2018,Wiveliscombe,Taunton Deane Borough Council,Wiveliscombe,Non-Domestic Rates,"4,706.45",0080012293,181901,000004,DD03
20/04/2018,Estates,I J Cannings & Son Ltd,Various - Electrical Servicing FY17-18,Planned Serv Maint Wrks Contra,"4,700.36",0070034552,181901,000005,DA06
30/04/2018,Wellington - upgrade & heating,ADG Consultancy Ltd,Wellington - Architectural Services,Architects,"4,675.00",0070034588,181901,000003,YC04
10/04/2018,Holsworthy,Torridge District Council,Stn 10 Rates 2018-19,Non-Domestic Rates,"4,419.48",0010012465,181901,000004,DD03
10/04/2018,Combe Martin,North Devon District Council,Stn 07 Rates 2018-19,Non-Domestic Rates,"4,362.09",0010012468,181901,000004,DD03
05/04/2018,Exmouth,East Devon District Council,P/30161998(2018/19),Non-Domestic Rates,"4,342.00",0020015613,181901,000005,DD03
05/04/2018,Exmouth,East Devon District Council,P/30161998(2018/19),Non-Domestic Rates,"4,338.00",0020015613,181902,000002,DD03
05/04/2018,Exmouth,East Devon District Council,P/30161998(2018/19),Non-Domestic Rates,"4,338.00",0020015613,181903,000002,DD03
05/04/2018,Exmouth,East Devon District Council,P/30161998(2018/19),Non-Domestic Rates,"4,338.00",0020015613,181904,000002,DD03
05/04/2018,Exmouth,East Devon District Council,P/30161998(2018/19),Non-Domestic Rates,"4,338.00",0020015613,181905,000002,DD03
05/04/2018,Exmouth,East Devon District Council,P/30161998(2018/19),Non-Domestic Rates,"4,338.00",0020015613,181906,000002,DD03
05/04/2018,Exmouth,East Devon District Council,P/30161998(2018/19),Non-Domestic Rates,"4,338.00",0020015613,181907,000002,DD03
05/04/2018,Exmouth,East Devon District Council,P/30161998(2018/19),Non-Domestic Rates,"4,338.00",0020015613,181908,000002,DD03
05/04/2018,Exmouth,East Devon District Council,P/30161998(2018/19),Non-Domestic Rates,"4,338.00",0020015613,181909,000002,DD03
05/04/2018,Exmouth,East Devon District Council,P/30161998(2018/19),Non-Domestic Rates,"4,338.00",0020015613,181910,000002,DD03
09/04/2018,Response Policy & Specialist C,E P Barrus Ltd,1x Mariner Marathon 50hp 2 stroke,Specialist Rescue Equipment,"4,300.14",0060058436,181901,000003,HC02
05/04/2018,Uniforms PPE,W M Sugden & Sons Ltd,MALE CARGO TROUSERS (BLACK),Workwear,"4,296.60",0085016722,181901,000004,HG03
04/04/2018,Uniforms PPE,W M Sugden & Sons Ltd,MALE CARGO TROUSERS (BLACK),Workwear,"4,286.70",0085016715,181901,000003,HG03
04/04/2018,Uniforms PPE,W M Sugden & Sons Ltd,MALE CARGO TROUSERS (BLACK),Workwear,"4,286.70",0085016715,181901,000006,HG03
09/04/2018,Plympton,Plymouth City Council,"P/130203413728534,",Non-Domestic Rates,"4,272.63",0025017289,181901,000009,DD03
09/04/2018,Plympton,Plymouth City Council,"P/130203413728534,",Non-Domestic Rates,"4,271.75",0025017289,181902,000003,DD03
09/04/2018,Plympton,Plymouth City Council,"P/130203413728534,",Non-Domestic Rates,"4,271.75",0025017289,181903,000003,DD03
09/04/2018,Plympton,Plymouth City Council,"P/130203413728534,",Non-Domestic Rates,"4,271.75",0025017289,181904,000003,DD03
09/04/2018,Plympton,Plymouth City Council,"P/130203413728534,",Non-Domestic Rates,"4,271.75",0025017289,181905,000003,DD03
09/04/2018,Plympton,Plymouth City Council,"P/130203413728534,",Non-Domestic Rates,"4,271.75",0025017289,181906,000003,DD03
09/04/2018,Plympton,Plymouth City Council,"P/130203413728534,",Non-Domestic Rates,"4,271.75",0025017289,181907,000003,DD03
09/04/2018,Plympton,Plymouth City Council,"P/130203413728534,",Non-Domestic Rates,"4,271.75",0025017289,181908,000003,DD03
09/04/2018,Plympton,Plymouth City Council,"P/130203413728534,",Non-Domestic Rates,"4,271.75",0025017289,181909,000003,DD03
09/04/2018,Plympton,Plymouth City Council,"P/130203413728534,",Non-Domestic Rates,"4,271.75",0025017289,181910,000003,DD03
19/04/2018,Chelston Vehicle Engineering,Bristol Uniforms Ltd,REPAIRING OF UNIFORMS,PPE - Repairs,"4,255.94",0057018714,181901,000005,HG06
16/04/2018,Operational Assets Management,Certas Energy UK Ltd,"5,400 LTRS DIESEL",Fuel (Petrol Etc),"4,250.68",0040014009,181901,000005,FC01
04/04/2018,Chelston Vehicle Engineering,M B H Industrial Services Ltd,Chelston - Replace Worskhop Heater,Planned Maint Proj Contractor,"4,223.00",0070034424,181901,000005,DA05
24/04/2018,ICT Delivery,Datix Limited,Support and Maintenance,ICT H&S Systems Support Serv,"4,215.00",0072013156,181901,000005,HA48
05/04/2018,Estates,Masons Kings,Estates - John Deere Mower,Standard Equipment,"4,108.33",0070034421,181901,000005,HA01
23/04/2018,ICT Delivery,Department for Communities & Local,Airwave Call off Charges (January) -,ICT Radio Network Service,"4,081.04",0072013155,181901,000005,HF01
23/04/2018,Ops Safety - New Train Model,Summit Computer Recruitment Ltd,T4C Project Work,Admin/Manage Salary,"4,050.00",0060058670,181901,000003,AW01
10/04/2018,Exeter Engineering,North Devon District Council,Stn 01 Workshops Rates 2018-19,Non-Domestic Rates,"4,049.13",0010012475,181901,000004,DD03
09/04/2018,Light Vehicle Management,Lex Autolease Ltd,WJ17GCX,Lease Car Contribution Admin,"4,005.72",0040014000,181901,000008,FE72
11/04/2018,Tiverton,Cowley's Building & Maintenance Ltd,Tiverton - Repairs to Partition Wall,Unforseen Building Contractor,"4,005.00",0070034481,181901,000005,DA01
13/04/2018,ICT Delivery,AV Parts Master Ltd,10 x Epson EB-965H Projectors 3990.00,ICT Desktop Service,"3,998.99",0072013135,181901,000005,HA20
10/04/2018,Hatherleigh,West Devon Borough Council,Stn 09 Rates 2018-19,Non-Domestic Rates,"3,902.92",0010012466,181901,000004,DD03
09/04/2018,Light Vehicle Management,Lex Autolease Ltd,FL15HCO,Lease Car Contribution Uniform,"3,886.92",0040013995,181901,000005,FD72
09/04/2018,ICT Delivery,,Multiple,ICT Mobs Service Equipment,"3,835.00",0100016069,181901,000003,HF20
30/04/2018,Danes Castle,Lancer Scott,Exeter Danes Castle - Partitioning Works,Planned Maint Proj Contractor,"3,798.19",0070034576,181901,000005,DA05
09/04/2018,Severn Park,Gloucestershire County Council,Training Directors Salary,Severn Park Equalisation Costs,"3,778.29",0030029112,181901,000005,AE25
09/04/2018,Light Vehicle Management,Lex Autolease Ltd,YD15ZNC,Lease Car Contribution Admin,"3,713.88",0040013995,181901,000007,FE72
09/04/2018,Light Vehicle Management,Lex Autolease Ltd,SERVICE,Lease Car Service Admin,"3,683.04",0040013994,181901,000006,FE80
10/04/2018,Barnstaple,North Devon District Council,P/93438151(2018/2019),Non-Domestic Rates,"3,674.70",0010012475,181902,000003,DD03
10/04/2018,Barnstaple,North Devon District Council,P/93438151(2018/2019),Non-Domestic Rates,"3,674.70",0010012475,181903,000003,DD03
10/04/2018,Barnstaple,North Devon District Council,P/93438151(2018/2019),Non-Domestic Rates,"3,674.70",0010012475,181904,000003,DD03
10/04/2018,Barnstaple,North Devon District Council,P/93438151(2018/2019),Non-Domestic Rates,"3,674.70",0010012475,181905,000003,DD03
10/04/2018,Barnstaple,North Devon District Council,P/93438151(2018/2019),Non-Domestic Rates,"3,674.70",0010012475,181906,000003,DD03
10/04/2018,Barnstaple,North Devon District Council,P/93438151(2018/2019),Non-Domestic Rates,"3,674.70",0010012475,181907,000003,DD03
10/04/2018,Barnstaple,North Devon District Council,P/93438151(2018/2019),Non-Domestic Rates,"3,674.70",0010012475,181908,000003,DD03
10/04/2018,Barnstaple,North Devon District Council,P/93438151(2018/2019),Non-Domestic Rates,"3,674.70",0010012475,181909,000003,DD03
10/04/2018,Barnstaple,North Devon District Council,P/93438151(2018/2019),Non-Domestic Rates,"3,674.70",0010012475,181910,000003,DD03
11/04/2018,Yeovil,South Somerset District Council,P/041916(2018/2019),Non-Domestic Rates,"3,635.00",0080012320,181902,000002,DD03
11/04/2018,Yeovil,South Somerset District Council,P/041916(2018/2019),Non-Domestic Rates,"3,635.00",0080012320,181903,000002,DD03
11/04/2018,Yeovil,South Somerset District Council,P/041916(2018/2019),Non-Domestic Rates,"3,635.00",0080012320,181904,000002,DD03
11/04/2018,Yeovil,South Somerset District Council,P/041916(2018/2019),Non-Domestic Rates,"3,635.00",0080012320,181905,000002,DD03
11/04/2018,Yeovil,South Somerset District Council,P/041916(2018/2019),Non-Domestic Rates,"3,635.00",0080012320,181906,000002,DD03
11/04/2018,Yeovil,South Somerset District Council,P/041916(2018/2019),Non-Domestic Rates,"3,635.00",0080012320,181907,000002,DD03
11/04/2018,Yeovil,South Somerset District Council,P/041916(2018/2019),Non-Domestic Rates,"3,635.00",0080012320,181908,000002,DD03
11/04/2018,Yeovil,South Somerset District Council,P/041916(2018/2019),Non-Domestic Rates,"3,635.00",0080012320,181909,000002,DD03
11/04/2018,Yeovil,South Somerset District Council,P/041916(2018/2019),Non-Domestic Rates,"3,635.00",0080012320,181910,000002,DD03
11/04/2018,Yeovil,South Somerset District Council,P/041916(2018/2019),Non-Domestic Rates,"3,632.94",0080012320,181901,000005,DD03
06/04/2018,ISU Equipment,Terberg DTS (UK) Ltd,2 x MT236 NEO PPV Fan with rear tilt,Operational Equipment,"3,600.00",0040013988,181901,000006,HC00
09/04/2018,Academy Management,Plymouth City Council,P/13020082962716A:,Non-Domestic Rates,"3,590.30",0025017277,181901,000007,DD03
09/04/2018,Academy Management,Plymouth City Council,P/13020082962716A:,Non-Domestic Rates,"3,588.90",0025017277,181902,000003,DD03
09/04/2018,Academy Management,Plymouth City Council,P/13020082962716A:,Non-Domestic Rates,"3,588.90",0025017277,181903,000003,DD03
09/04/2018,Academy Management,Plymouth City Council,P/13020082962716A:,Non-Domestic Rates,"3,588.90",0025017277,181904,000003,DD03
09/04/2018,Academy Management,Plymouth City Council,P/13020082962716A:,Non-Domestic Rates,"3,588.90",0025017277,181905,000003,DD03
09/04/2018,Academy Management,Plymouth City Council,P/13020082962716A:,Non-Domestic Rates,"3,588.90",0025017277,181906,000003,DD03
09/04/2018,Academy Management,Plymouth City Council,P/13020082962716A:,Non-Domestic Rates,"3,588.90",0025017277,181907,000003,DD03
09/04/2018,Academy Management,Plymouth City Council,P/13020082962716A:,Non-Domestic Rates,"3,588.90",0025017277,181908,000003,DD03
09/04/2018,Academy Management,Plymouth City Council,P/13020082962716A:,Non-Domestic Rates,"3,588.90",0025017277,181909,000003,DD03
09/04/2018,Academy Management,Plymouth City Council,P/13020082962716A:,Non-Domestic Rates,"3,588.90",0025017277,181910,000003,DD03
06/04/2018,Bere Alston,West Devon Borough Council,STN52 Non domestic rates 2018/19 call,Non-Domestic Rates,"3,501.15",0025017272,181901,000004,DD03
17/04/2018,ICT Delivery,PageOne Communications Ltd,1 x Block of 100 000 SMS messages,ICT Gartan Support Service,"3,500.00",0072013132,181901,000005,HA42
17/04/2018,Bovey Tracey,Cowley's Building & Maintenance Ltd,"Bovey Tracey - Gable End Repairs,",Planned Maint Proj Contractor,"3,490.00",0070034523,181901,000005,DA05
10/04/2018,Ashburton,Teignbridge District Council,Ashburton Rates for 18/19,Non-Domestic Rates,"3,386.36",0015014970,181901,000006,DD03
10/04/2018,Barnstaple,North Devon District Council,P/93438151(2018/2019),Non-Domestic Rates,"3,369.85",0010012475,181901,000007,DD03
06/04/2018,Salcombe,South Hams District Council,STN29 Non domestic rates 2018/19 call,Non-Domestic Rates,"3,271.56",0025017273,181901,000004,DD03
05/04/2018,Uniforms PPE,W M Sugden & Sons Ltd,MALE CARGO TROUSERS (BLACK),Workwear,"3,257.00",0085016722,181901,000002,HG03
11/04/2018,Fire Behaviour School,Wernick Hire Ltd,BA Airport Academy - Hire of Shower Unit,Rents,"3,247.14",0070034477,181901,000005,DD01
18/04/2018,Chelston Vehicle Engineering,Motivair Compressors Ltd,10% BALANCE AGAINST NEW COMPRESSED AIR,BA Compressor Maintenance,"3,238.20",0057018700,181901,000005,HB09
06/04/2018,Bridgwater,Sedgemoor District Council,P/766040050800328X,Non-Domestic Rates,"3,205.00",0080012287,181902,000002,DD03
06/04/2018,Bridgwater,Sedgemoor District Council,P/766040050800328X,Non-Domestic Rates,"3,205.00",0080012287,181903,000002,DD03
06/04/2018,Bridgwater,Sedgemoor District Council,P/766040050800328X,Non-Domestic Rates,"3,205.00",0080012287,181904,000002,DD03
06/04/2018,Bridgwater,Sedgemoor District Council,P/766040050800328X,Non-Domestic Rates,"3,205.00",0080012287,181905,000002,DD03
06/04/2018,Bridgwater,Sedgemoor District Council,P/766040050800328X,Non-Domestic Rates,"3,205.00",0080012287,181906,000002,DD03
06/04/2018,Bridgwater,Sedgemoor District Council,P/766040050800328X,Non-Domestic Rates,"3,205.00",0080012287,181907,000002,DD03
06/04/2018,Bridgwater,Sedgemoor District Council,P/766040050800328X,Non-Domestic Rates,"3,205.00",0080012287,181908,000002,DD03
06/04/2018,Bridgwater,Sedgemoor District Council,P/766040050800328X,Non-Domestic Rates,"3,205.00",0080012287,181909,000002,DD03
06/04/2018,Bridgwater,Sedgemoor District Council,P/766040050800328X,Non-Domestic Rates,"3,205.00",0080012287,181910,000002,DD03
06/04/2018,Bridgwater,Sedgemoor District Council,P/766040050800328X,Non-Domestic Rates,"3,200.00",0080012287,181901,000005,DD03
04/04/2018,Taunton,Lancer Scott,Taunton - Smoke House works,Planned Maint Proj Contractor,"3,176.70",0070034450,181901,000005,DA05
05/04/2018,Topsham,Exeter City Council,Stn 45 Rates 2018-19,Non-Domestic Rates,"3,156.77",0020015601,181901,000002,DD03
10/04/2018,ICT Delivery,PageOne Communications Ltd,100 Responder App Licenses (Annual,ICT Paging Service,"3,150.00",0072013127,181901,000006,HF02
06/04/2018,Harmonisation Equipment,Exeter Tool Shop,50 x 18v SDS Plus Brushless Drill Body,Operational Equipment,"3,146.00",0040013989,181901,000005,HC00
09/04/2018,Crownhill,Plymouth City Council,P/130203776327294,Non-Domestic Rates,"3,123.66",0025017278,181901,000008,DD03
09/04/2018,Crownhill,Plymouth City Council,P/130203776327294,Non-Domestic Rates,"3,122.00",0025017278,181902,000003,DD03
09/04/2018,Crownhill,Plymouth City Council,P/130203776327294,Non-Domestic Rates,"3,122.00",0025017278,181903,000003,DD03
09/04/2018,Crownhill,Plymouth City Council,P/130203776327294,Non-Domestic Rates,"3,122.00",0025017278,181904,000003,DD03
09/04/2018,Crownhill,Plymouth City Council,P/130203776327294,Non-Domestic Rates,"3,122.00",0025017278,181905,000003,DD03
09/04/2018,Crownhill,Plymouth City Council,P/130203776327294,Non-Domestic Rates,"3,122.00",0025017278,181906,000003,DD03
09/04/2018,Crownhill,Plymouth City Council,P/130203776327294,Non-Domestic Rates,"3,122.00",0025017278,181907,000003,DD03
09/04/2018,Crownhill,Plymouth City Council,P/130203776327294,Non-Domestic Rates,"3,122.00",0025017278,181908,000003,DD03
09/04/2018,Crownhill,Plymouth City Council,P/130203776327294,Non-Domestic Rates,"3,122.00",0025017278,181909,000003,DD03
09/04/2018,Crownhill,Plymouth City Council,P/130203776327294,Non-Domestic Rates,"3,122.00",0025017278,181910,000003,DD03
30/04/2018,Estates Strategy,ADG Consultancy Ltd,Various - Development Review Fee,External Prof Support/Advice,"3,116.15",0070034589,181901,000003,HJ02
24/04/2018,Democratic Services,Plymouth City Council,Legal services provided by Plymouth CC,Legal Services,"3,061.00",0060058842,181901,000005,LA02
06/04/2018,Chelston Vehicle Engineering,Taunton Deane Borough Council,P/8000214641(2018/19),Non-Domestic Rates,"3,032.00",0080012286,181902,000002,DD03
06/04/2018,Chelston Vehicle Engineering,Taunton Deane Borough Council,P/8000214641(2018/19),Non-Domestic Rates,"3,032.00",0080012286,181903,000002,DD03
06/04/2018,Chelston Vehicle Engineering,Taunton Deane Borough Council,P/8000214641(2018/19),Non-Domestic Rates,"3,032.00",0080012286,181904,000002,DD03
06/04/2018,Chelston Vehicle Engineering,Taunton Deane Borough Council,P/8000214641(2018/19),Non-Domestic Rates,"3,032.00",0080012286,181905,000002,DD03
06/04/2018,Chelston Vehicle Engineering,Taunton Deane Borough Council,P/8000214641(2018/19),Non-Domestic Rates,"3,032.00",0080012286,181906,000002,DD03
06/04/2018,Chelston Vehicle Engineering,Taunton Deane Borough Council,P/8000214641(2018/19),Non-Domestic Rates,"3,032.00",0080012286,181907,000002,DD03
06/04/2018,Chelston Vehicle Engineering,Taunton Deane Borough Council,P/8000214641(2018/19),Non-Domestic Rates,"3,032.00",0080012286,181908,000002,DD03
06/04/2018,Chelston Vehicle Engineering,Taunton Deane Borough Council,P/8000214641(2018/19),Non-Domestic Rates,"3,032.00",0080012286,181909,000002,DD03
06/04/2018,Chelston Vehicle Engineering,Taunton Deane Borough Council,P/8000214641(2018/19),Non-Domestic Rates,"3,032.00",0080012286,181910,000002,DD03
06/04/2018,Chelston Vehicle Engineering,Taunton Deane Borough Council,P/8000214641(2018/19),Non-Domestic Rates,"3,031.50",0080012286,181901,000004,DD03
04/04/2018,HFSC Pilot,Sprue Safety Products Ltd,100 W2-SVP-630,Standard Equipment,"3,000.00",0060058623,181901,000005,HA01
05/04/2018,Operational Assets Management,Chrystal Consulting Limited,12 Month extention to leased water,Lease Plant/Vehicles,"3,000.00",0060058636,181901,000005,NA13
05/04/2018,ICT Delivery,Civica GIS,CMAP Annual Maintenance 2017/18,ICT BI Systems Support Service,"3,000.00",0072013122,181901,000005,HA45
17/04/2018,ICT Delivery,Civica GIS,CMAP Annual Support & Maintenance,ICT BI Systems Support Service,"3,000.00",0072013133,181901,000005,HA45
13/04/2018,ICT Delivery,Modern Mindset Ltd,Modern.gov Restricted App Annual,ICT Application Services (Oth),"3,000.00",0072013136,181901,000006,HA22
04/04/2018,Estates Strategy,ADG Consultancy Ltd,Camelshead - Professional Services,External Prof Support/Advice,"2,990.00",0070034420,181901,000001,HJ02
17/04/2018,Barnstaple Group,External Professional Support & Advice,Invoice No. MC/DSFRS/011,External Prof Support/Advice,"2,970.00",0010012491,181901,000003,HJ02
11/04/2018,ESMCP (Reserve funding),Vodafone,2 Years rental of DNSP Circuits for ESN,ICT Mobs Service Equipment,"2,892.28",0060058674,181901,000003,HF20
13/04/2018,ICT Delivery,Gamma Business Communication,Gamma Mar Rental/Maintenance Charges,ICT Fixed Tele Serv Ret/Maint,"2,828.27",0072013137,181901,000006,HF05
25/04/2018,Democratic Services,Plymouth City Council,Legal services provided by Plymouth CC,Legal Services,"2,822.00",0060058849,181901,000005,LA02
19/04/2018,Chelston Vehicle Engineering,Clan Tools & Plant Ltd,HOSE  (CCM3173),Ops Hose,"2,814.00",0057018715,181901,000005,HC40
23/04/2018,Digital Trans Strategy,Summit Computer Recruitment Ltd,Home Safety Checks,Agency Staff Admin,"2,800.00",0060058669,181901,000003,AW19
05/04/2018,Budleigh Salterton,East Devon District Council,Stn 36 Rates 2018-19,Non-Domestic Rates,"2,755.00",0020015610,181901,000002,DD03
27/04/2018,Middlemoor Fire Station,J T T Contracting  Ltd,Middlemoor - Dished Channel Drainage,Planned Maint Proj Contractor,"2,704.45",0070034572,181901,000005,DA05
10/04/2018,Ops Safety - New Train Model,Summit Computer Recruitment Ltd,T4C Project Work,Admin/Manage Salary,"2,700.00",0060058568,181901,000002,AW01
19/04/2018,Chelston Vehicle Engineering,Bristol Uniforms Ltd,CLEANING OF UNIFORMS,PPE - Laundry,"2,662.73",0057018717,181901,000005,HG05
09/04/2018,Community Safety Prevention,PCC Devon & Cornwall,Salary costs March 2018.,Partnerships,"2,627.13",0060058649,181901,000002,HJ03
04/04/2018,Community Safety Prevention,PCC Devon & Cornwall,Salary costs December,Partnerships,"2,609.03",0060058626,181901,000002,HJ03
06/04/2018,Community Safety Prevention,PCC Devon & Cornwall,Salary costs February,Partnerships,"2,602.58",0060058643,181901,000002,HJ03
06/04/2018,Community Safety Prevention,PCC Devon & Cornwall,Salary costs January,Partnerships,"2,602.58",0060058644,181901,000002,HJ03
27/04/2018,Woolacombe,G & E Automatic Equipment Ltd,Woolacombe - Drying Cabinet Station,Planned Maint Proj Contractor,"2,528.00",0070034570,181901,000005,DA05
09/04/2018,Severn Park,Gloucestershire County Council,Audit Fees,Severn Park Equalisation Costs,"2,500.00",0030029112,181901,000006,AE25
13/04/2018,Martock,I J Cannings & Son Ltd,Martock - Remedial repairs,Planned Maint Proj Contractor,"2,495.00",0070034494,181901,000005,DA05
10/04/2018,Appledore,Torridge District Council,Stn 03 Rates 2018-19,Non-Domestic Rates,"2,468.03",0010012473,181901,000004,DD03
16/04/2018,Organisational Dev Leadership,People & Knowledge Solutions,For consultancy work in OD January,Talent Pool,"2,450.00",0060058739,181901,000002,AE10
09/04/2018,West Devon,Plymouth City Council,"P/130203413728534,",Non-Domestic Rates,"2,441.50",0025017289,181901,000004,DD03
09/04/2018,West Devon,Plymouth City Council,"P/130203413728534,",Non-Domestic Rates,"2,441.00",0025017289,181902,000002,DD03
09/04/2018,West Devon,Plymouth City Council,"P/130203413728534,",Non-Domestic Rates,"2,441.00",0025017289,181903,000002,DD03
09/04/2018,West Devon,Plymouth City Council,"P/130203413728534,",Non-Domestic Rates,"2,441.00",0025017289,181904,000002,DD03
09/04/2018,West Devon,Plymouth City Council,"P/130203413728534,",Non-Domestic Rates,"2,441.00",0025017289,181905,000002,DD03
09/04/2018,West Devon,Plymouth City Council,"P/130203413728534,",Non-Domestic Rates,"2,441.00",0025017289,181906,000002,DD03
09/04/2018,West Devon,Plymouth City Council,"P/130203413728534,",Non-Domestic Rates,"2,441.00",0025017289,181907,000002,DD03
09/04/2018,West Devon,Plymouth City Council,"P/130203413728534,",Non-Domestic Rates,"2,441.00",0025017289,181908,000002,DD03
09/04/2018,West Devon,Plymouth City Council,"P/130203413728534,",Non-Domestic Rates,"2,441.00",0025017289,181909,000002,DD03
09/04/2018,West Devon,Plymouth City Council,"P/130203413728534,",Non-Domestic Rates,"2,441.00",0025017289,181910,000002,DD03
05/04/2018,Danes Castle,Exeter City Council,P/700087404(2018/19),Non-Domestic Rates,"2,416.00",0020015614,181901,000005,DD03
10/04/2018,Human Resources,Devon Therapeutic Counselling Service,March Invoice for Counselling services,Occupational Health Unit,"2,392.00",0060058653,181901,000002,LA09
13/04/2018,ICT Delivery,Bechtle Direct Ltd,2 x Microsoft Surface Pro 256GB i7,ICT Desktop Service,"2,384.00",0072013131,181901,000010,HA20
30/04/2018,Estates,I J Cannings & Son Ltd,Various - Mechanical and Electrical PPM,Planned Serv Maint Wrks Contra,"2,373.90",0070034578,181901,000005,DA06
05/04/2018,Uniforms PPE,W M Sugden & Sons Ltd,MALE CARGO TROUSERS (BLACK),Workwear,"2,348.00",0085016721,181901,000003,HG03
25/04/2018,Chelston Vehicle Engineering,Interspiro Ltd,REFRESHER TRAINING COURSE,Non-Uniformed Training,"2,330.00",0057018763,181901,000005,AE14
09/04/2018,Estates,I J Cannings & Son Ltd,Various - Heating Servicing FY17-18,Planned Serv Maint Wrks Contra,"2,324.92",0070034467,181901,000005,DA06
10/04/2018,Chulmleigh,North Devon District Council,Stn 06 Rates 2018-19 (Station),Non-Domestic Rates,"2,324.53",0010012470,181901,000004,DD03
06/04/2018,Finance,Somerset County Council Pension Fund,Somerset County Pension Fund Recharge :,Pension Enhancements LG Scheme,"2,300.00",0060058646,181901,000002,AW62
19/04/2018,Operational Assets Management,A T S Euromaster Ltd,TYRES AND REPAIRS,Tyres & Tubes,"2,291.90",0057018706,181901,000005,FA03
05/04/2018,Salcombe - extension/refurbish,Complete Office Solutions UK Ltd,Salcombe - Furniture,Specialist contract works,"2,260.79",0070034455,181901,000001,YB05
30/04/2018,South Molton,HAG Shutters & Grilles Limited,South Molton - Appliance Bay Door works,Unforseen Building Contractor,"2,242.28",0070034605,181901,000005,DA01
24/04/2018,Democratic Services,Legal Services,Legal and Training Services,Legal Services,"2,238.15",0060058803,181901,000005,LA02
30/04/2018,Middlemoor Fire Station,J T T Contracting  Ltd,Middlemoor - Wall removal,Planned Maint Proj Contractor,"2,189.42",0070034585,181901,000005,DA05
09/04/2018,Light Vehicle Management,Lex Autolease Ltd,SERVICE,Lease Car Service Admin,"2,166.36",0040014000,181901,000010,FE80
13/04/2018,Democratic Services,Cornwall County Council,Legal services provided by Conrwall CC,Legal Services,"2,128.00",0060058721,181901,000005,LA02
06/04/2018,USAR Team,East Devon District Council,P/30226865(2018/19),Non-Domestic Rates,"2,112.00",0060058638,181901,000005,DD03
06/04/2018,USAR Team,East Devon District Council,P/30226865(2018/19),Non-Domestic Rates,"2,112.00",0060058638,181902,000002,DD03
06/04/2018,USAR Team,East Devon District Council,P/30226865(2018/19),Non-Domestic Rates,"2,112.00",0060058638,181903,000002,DD03
06/04/2018,USAR Team,East Devon District Council,P/30226865(2018/19),Non-Domestic Rates,"2,112.00",0060058638,181904,000002,DD03
06/04/2018,USAR Team,East Devon District Council,P/30226865(2018/19),Non-Domestic Rates,"2,112.00",0060058638,181905,000002,DD03
06/04/2018,USAR Team,East Devon District Council,P/30226865(2018/19),Non-Domestic Rates,"2,112.00",0060058638,181906,000002,DD03
06/04/2018,USAR Team,East Devon District Council,P/30226865(2018/19),Non-Domestic Rates,"2,112.00",0060058638,181907,000002,DD03
06/04/2018,USAR Team,East Devon District Council,P/30226865(2018/19),Non-Domestic Rates,"2,112.00",0060058638,181908,000002,DD03
06/04/2018,USAR Team,East Devon District Council,P/30226865(2018/19),Non-Domestic Rates,"2,112.00",0060058638,181909,000002,DD03
06/04/2018,USAR Team,East Devon District Council,P/30226865(2018/19),Non-Domestic Rates,"2,112.00",0060058638,181910,000002,DD03
04/04/2018,Finance,PS Tax,Annual PSTA Membership for 2018/19,Finance Services,"2,065.00",0065012058,181901,000005,LA05
30/04/2018,Fire Behaviour School,Integral,The Academy  - Service Continuity,Planned Maint Proj Contractor,"2,059.55",0070034595,181901,000005,DA05
05/04/2018,Estates,Churchill Environmental Services,Legionella Monitoring March Various,Planned Serv Maint Wrks Contra,"2,026.29",0070034454,181901,000005,DA06
10/04/2018,Digital Trans Strategy,Summit Computer Recruitment Ltd,Home Safety Checks,Agency Staff Admin,"2,000.00",0060058570,181901,000002,AW19
10/04/2018,Ops Safety - New Train Model,Summit Computer Recruitment Ltd,T4C Project Work,Admin/Manage Salary,"2,000.00",0060058571,181901,000001,AW01
10/04/2018,Ops Safety - New Train Model,Summit Computer Recruitment Ltd,T4C Project Work,Admin/Manage Salary,"2,000.00",0060058571,181901,000002,AW01
23/04/2018,Ops Safety - New Train Model,Summit Computer Recruitment Ltd,T4C Project Work,Admin/Manage Salary,"2,000.00",0060058668,181901,000003,AW01
24/04/2018,ICT Delivery,Computer Security Technology Ltd,50 x VMware Workspace ONE Standard,ICT Mobile Telephony Service,"1,999.50",0072013160,181901,000005,HF29
05/04/2018,ICT Delivery,EE Limited,10 x Samsung Galaxy Xcover 4 @199 =,ICT Mobile Telephony Service,"1,990.00",0072013123,181901,000005,HF29
10/04/2018,Teignmouth,Teignbridge District Council,P/30292662(2018/2019),Non-Domestic Rates,"1,968.00",0015014979,181901,000005,DD03
10/04/2018,Teignmouth,Teignbridge District Council,P/30292662(2018/2019),Non-Domestic Rates,"1,968.00",0015014979,181902,000002,DD03
10/04/2018,Teignmouth,Teignbridge District Council,P/30292662(2018/2019),Non-Domestic Rates,"1,968.00",0015014979,181903,000002,DD03
10/04/2018,Teignmouth,Teignbridge District Council,P/30292662(2018/2019),Non-Domestic Rates,"1,968.00",0015014979,181904,000002,DD03
10/04/2018,Teignmouth,Teignbridge District Council,P/30292662(2018/2019),Non-Domestic Rates,"1,968.00",0015014979,181905,000002,DD03
10/04/2018,Teignmouth,Teignbridge District Council,P/30292662(2018/2019),Non-Domestic Rates,"1,968.00",0015014979,181906,000002,DD03
10/04/2018,Teignmouth,Teignbridge District Council,P/30292662(2018/2019),Non-Domestic Rates,"1,968.00",0015014979,181907,000002,DD03
10/04/2018,Teignmouth,Teignbridge District Council,P/30292662(2018/2019),Non-Domestic Rates,"1,968.00",0015014979,181908,000002,DD03
10/04/2018,Teignmouth,Teignbridge District Council,P/30292662(2018/2019),Non-Domestic Rates,"1,968.00",0015014979,181909,000002,DD03
10/04/2018,Teignmouth,Teignbridge District Council,P/30292662(2018/2019),Non-Domestic Rates,"1,968.00",0015014979,181910,000002,DD03
05/04/2018,Light Vehicle Management,Access Service & Maintenance Ltd,WA59 FUG - V32A1,Vehicle Repair Other (Transpt),"1,965.40",0070034453,181901,000005,FA31
06/04/2018,Fire Headquarters,BSL Security Systems,Asset Building - Security Access Control,Planned Maint Proj Contractor,"1,965.00",0070034464,181901,000005,DA05
04/04/2018,ICT Delivery,Beacon Communications Services Ltd,Antenna install at Ilfracombe  Holiday,ICTMobs Service Charges,"1,941.22",0072013119,181901,000005,HF19
10/04/2018,Learn 2 Live,Website Vision Ltd,LEARN2LIVE WEBSITE HOSTING AND CMS,Standard Equipment,"1,940.00",0015014967,181901,000001,HA01
12/04/2018,Paignton,Torbay Council,P/802115(2018/19),Non-Domestic Rates,"1,936.62",0015014993,181901,000005,DD03
05/04/2018,Academy Management,Exeter & Devon Airport Ltd,The Academy Airport - Rent 01/04/18 to,Rents,"1,935.00",0070034462,181901,000005,DD01
12/04/2018,Paignton,Torbay Council,P/802115(2018/19),Non-Domestic Rates,"1,932.00",0015014993,181902,000002,DD03
12/04/2018,Paignton,Torbay Council,P/802115(2018/19),Non-Domestic Rates,"1,932.00",0015014993,181903,000002,DD03
12/04/2018,Paignton,Torbay Council,P/802115(2018/19),Non-Domestic Rates,"1,932.00",0015014993,181904,000002,DD03
12/04/2018,Paignton,Torbay Council,P/802115(2018/19),Non-Domestic Rates,"1,932.00",0015014993,181905,000002,DD03
12/04/2018,Paignton,Torbay Council,P/802115(2018/19),Non-Domestic Rates,"1,932.00",0015014993,181906,000002,DD03
12/04/2018,Paignton,Torbay Council,P/802115(2018/19),Non-Domestic Rates,"1,932.00",0015014993,181907,000002,DD03
12/04/2018,Paignton,Torbay Council,P/802115(2018/19),Non-Domestic Rates,"1,932.00",0015014993,181908,000002,DD03
12/04/2018,Paignton,Torbay Council,P/802115(2018/19),Non-Domestic Rates,"1,932.00",0015014993,181909,000002,DD03
12/04/2018,Paignton,Torbay Council,P/802115(2018/19),Non-Domestic Rates,"1,932.00",0015014993,181910,000002,DD03
05/04/2018,Academy Learning Support,Pro AV,The supply of LED studio lighting,Audio Visual Equipment,"1,900.00",0030029087,181901,000003,HA02
10/04/2018,Ops Safety - New Train Model,Summit Computer Recruitment Ltd,T4C Project Work,Admin/Manage Salary,"1,888.90",0060058569,181901,000001,AW01
23/04/2018,Ops Safety - New Train Model,Summit Computer Recruitment Ltd,T4C Project Work,Admin/Manage Salary,"1,888.90",0060058671,181901,000003,AW01
17/04/2018,Human Resources,MHR International UK Limited,Payroll Consultant Charges,Finance Services,"1,872.50",0060058745,181901,000005,LA05
09/04/2018,ICT Delivery,British Telecommunications Plc,March BT One-off charges       1867.04,ICT Fixed Tele Serv Ret/Maint,"1,867.04",0072013126,181901,000006,HF05
10/04/2018,Chulmleigh,North Devon District Council,Stn 06 Drill Yard,Non-Domestic Rates,"1,848.00",0010012469,181901,000004,DD03
19/04/2018,Chelston Vehicle Engineering,Bristol Uniforms Ltd,COLLECTION & DELIVERY OF UNIFORMS,PPE - Laundry,"1,845.76",0057018712,181901,000005,HG05
05/04/2018,Uniforms PPE,W M Sugden & Sons Ltd,MALE CARGO TROUSERS (BLACK),Workwear,"1,828.00",0085016721,181901,000002,HG03
27/04/2018,HFSC Pilot,Sprue Aegis,200  CO-9XT - FF  7 year life Carbon,Standard Equipment,"1,824.83",0060058861,181901,000006,HA01
04/04/2018,Uniforms PPE,W M Sugden & Sons Ltd,MALE CARGO TROUSERS (BLACK),Workwear,"1,818.60",0085016715,181901,000007,HG03
10/04/2018,Ops Safety - New Train Model,Summit Computer Recruitment Ltd,T4C Project Work,Admin/Manage Salary,"1,800.00",0060058568,181901,000001,AW01
16/04/2018,Human Resources,Exeter Physio,Part 1 of March invoice for,Occupational Health Unit,"1,800.00",0060058738,181901,000002,LA09
13/04/2018,Organisational Dev Leadership,Stonewall Equality Ltd,Fee for attending Stonewall Workplace,Seminars/Conferences,"1,794.00",0060058725,181901,000005,AE13
05/04/2018,Crediton,Mid Devon District Council,P/1221140(2018/2019),Non-Domestic Rates,"1,790.00",0020015608,181901,000005,DD03
05/04/2018,Crediton,Mid Devon District Council,P/1221140(2018/2019),Non-Domestic Rates,"1,790.00",0020015608,181902,000002,DD03
05/04/2018,Crediton,Mid Devon District Council,P/1221140(2018/2019),Non-Domestic Rates,"1,790.00",0020015608,181903,000002,DD03
05/04/2018,Crediton,Mid Devon District Council,P/1221140(2018/2019),Non-Domestic Rates,"1,790.00",0020015608,181904,000002,DD03
05/04/2018,Crediton,Mid Devon District Council,P/1221140(2018/2019),Non-Domestic Rates,"1,790.00",0020015608,181905,000002,DD03
05/04/2018,Crediton,Mid Devon District Council,P/1221140(2018/2019),Non-Domestic Rates,"1,790.00",0020015608,181906,000002,DD03
05/04/2018,Crediton,Mid Devon District Council,P/1221140(2018/2019),Non-Domestic Rates,"1,790.00",0020015608,181907,000002,DD03
05/04/2018,Crediton,Mid Devon District Council,P/1221140(2018/2019),Non-Domestic Rates,"1,790.00",0020015608,181908,000002,DD03
05/04/2018,Crediton,Mid Devon District Council,P/1221140(2018/2019),Non-Domestic Rates,"1,790.00",0020015608,181909,000002,DD03
05/04/2018,Crediton,Mid Devon District Council,P/1221140(2018/2019),Non-Domestic Rates,"1,790.00",0020015608,181910,000002,DD03
05/04/2018,Crediton,Mid Devon District Council,P/1221140(2018/2019),Non-Domestic Rates,"1,790.00",0020015608,181911,000002,DD03
05/04/2018,Crediton,Mid Devon District Council,P/1221140(2018/2019),Non-Domestic Rates,"1,790.00",0020015608,181912,000002,DD03
11/04/2018,Chard,South Somerset District Council,P/070646(2018/2019),Non-Domestic Rates,"1,788.00",0080012298,181901,000005,DD03
11/04/2018,Chard,South Somerset District Council,P/070646(2018/2019),Non-Domestic Rates,"1,788.00",0080012298,181902,000002,DD03
11/04/2018,Chard,South Somerset District Council,P/070646(2018/2019),Non-Domestic Rates,"1,788.00",0080012298,181903,000002,DD03
11/04/2018,Chard,South Somerset District Council,P/070646(2018/2019),Non-Domestic Rates,"1,788.00",0080012298,181904,000002,DD03
11/04/2018,Chard,South Somerset District Council,P/070646(2018/2019),Non-Domestic Rates,"1,788.00",0080012298,181905,000002,DD03
11/04/2018,Chard,South Somerset District Council,P/070646(2018/2019),Non-Domestic Rates,"1,788.00",0080012298,181906,000002,DD03
11/04/2018,Chard,South Somerset District Council,P/070646(2018/2019),Non-Domestic Rates,"1,788.00",0080012298,181907,000002,DD03
11/04/2018,Chard,South Somerset District Council,P/070646(2018/2019),Non-Domestic Rates,"1,788.00",0080012298,181908,000002,DD03
11/04/2018,Chard,South Somerset District Council,P/070646(2018/2019),Non-Domestic Rates,"1,788.00",0080012298,181909,000002,DD03
11/04/2018,Chard,South Somerset District Council,P/070646(2018/2019),Non-Domestic Rates,"1,788.00",0080012298,181910,000002,DD03
19/04/2018,Insurance & Risk,Tally Ho Coaches Ltd,FM17/001795,Vehicle Ins Claims (+ Excess),"1,783.30",0055028185,181901,000005,FC03
09/04/2018,South Devon Area,Thrifty Car & Van Rental,THRIFTY CAR AND VAN RE,Hired Transport,"1,747.70",0100016073,181901,000002,FD01
30/04/2018,ICT Delivery,EE Limited,EE April 2018 01272276706,ICT Mobile Telephony Service,"1,739.18",0070034612,181901,000005,HF29
09/04/2018,ICT Delivery,,ARAS & RBH SECURITY GROU,ICT Building Acc Control Serv,"1,700.00",0100016068,181901,000003,HF08
05/04/2018,ICT Delivery,Phoenix Software Ltd,MapInfo Devon and Somerset Fire and,ICT BI Systems Support Service,"1,698.69",0072013121,181901,000005,HA45
04/04/2018,Salcombe - extension/refurbish,Capita Property & Infastructure,Salcombe - M&E Design services in,Building regulation fees,"1,650.00",0070034447,181901,000001,YC08
13/04/2018,Plympton,HAG Shutters & Grilles Limited,Plympton - New Roller Shutter,Planned Maint Proj Contractor,"1,616.00",0070034488,181901,000005,DA05
05/04/2018,Organisational Dev Leadership,Cornwall College St Austell,CM Managing Health & Safety Course on,Uniformed Development Training,"1,600.00",0030029101,181901,000002,AE09
10/04/2018,Digital Trans Strategy,Summit Computer Recruitment Ltd,Home Safety Checks,Agency Staff Admin,"1,600.00",0060058570,181901,000001,AW19
05/04/2018,Operational Assets Management,Chrystal Consulting Limited,12 Month extention to lease 402,Lease Plant/Vehicles,"1,600.00",0060058637,181901,000005,NA13
05/04/2018,Uniforms PPE,W M Sugden & Sons Ltd,MALE CARGO TROUSERS (BLACK),Workwear,"1,568.70",0085016722,181901,000005,HG03
23/04/2018,Marauding Terrorist MTFP,Aegis Engineering Limitted,Goods to be supplied in accordance with,Uniforms Other,"1,543.14",0060058793,181901,000005,HG01
09/04/2018,Camels Head,Plymouth City Council,P/13020082962716A:,Non-Domestic Rates,"1,538.70",0025017277,181901,000005,DD03
09/04/2018,Camels Head,Plymouth City Council,P/13020082962716A:,Non-Domestic Rates,"1,538.10",0025017277,181902,000002,DD03
09/04/2018,Camels Head,Plymouth City Council,P/13020082962716A:,Non-Domestic Rates,"1,538.10",0025017277,181903,000002,DD03
09/04/2018,Camels Head,Plymouth City Council,P/13020082962716A:,Non-Domestic Rates,"1,538.10",0025017277,181904,000002,DD03
09/04/2018,Camels Head,Plymouth City Council,P/13020082962716A:,Non-Domestic Rates,"1,538.10",0025017277,181905,000002,DD03
09/04/2018,Camels Head,Plymouth City Council,P/13020082962716A:,Non-Domestic Rates,"1,538.10",0025017277,181906,000002,DD03
09/04/2018,Camels Head,Plymouth City Council,P/13020082962716A:,Non-Domestic Rates,"1,538.10",0025017277,181907,000002,DD03
09/04/2018,Camels Head,Plymouth City Council,P/13020082962716A:,Non-Domestic Rates,"1,538.10",0025017277,181908,000002,DD03
09/04/2018,Camels Head,Plymouth City Council,P/13020082962716A:,Non-Domestic Rates,"1,538.10",0025017277,181909,000002,DD03
09/04/2018,Camels Head,Plymouth City Council,P/13020082962716A:,Non-Domestic Rates,"1,538.10",0025017277,181910,000002,DD03
30/04/2018,Finance,Peninsula Pensions,Pension Recharges 2018/2019,Pension Enhancements LG Scheme,"1,514.92",0060058874,181901,000002,AW62
10/04/2018,Ops Safety - New Train Model,Summit Computer Recruitment Ltd,T4C Project Work,Admin/Manage Salary,"1,511.12",0060058569,181901,000002,AW01
23/04/2018,Ops Safety - New Train Model,Summit Computer Recruitment Ltd,T4C Project Work,Admin/Manage Salary,"1,511.12",0060058671,181901,000004,AW01
04/04/2018,Response Policy & Specialist C,Rig Systems Limited,1x PCW5000 Winch as per quote QU-0136,Specialist Rescue Equipment,"1,500.00",0060058536,181901,000007,HC02
04/04/2018,HFSC Pilot,Sprue Safety Products Ltd,100 WST-630 II,Standard Equipment,"1,500.00",0060058623,181901,000006,HA01
30/04/2018,Telephony & Network Upgrade,4D Consulting Limited,ICT Telephony Upgrade Project and,Agency Staff Admin,"1,500.00",0072013165,181901,000001,AW19
06/04/2018,Burnham-on-Sea,Sedgemoor District Council,P/7712480508003280,Non-Domestic Rates,"1,488.00",0080012290,181901,000005,DD03
06/04/2018,Burnham-on-Sea,Sedgemoor District Council,P/7712480508003280,Non-Domestic Rates,"1,488.00",0080012290,181902,000002,DD03
06/04/2018,Burnham-on-Sea,Sedgemoor District Council,P/7712480508003280,Non-Domestic Rates,"1,488.00",0080012290,181903,000002,DD03
06/04/2018,Burnham-on-Sea,Sedgemoor District Council,P/7712480508003280,Non-Domestic Rates,"1,488.00",0080012290,181904,000002,DD03
06/04/2018,Burnham-on-Sea,Sedgemoor District Council,P/7712480508003280,Non-Domestic Rates,"1,488.00",0080012290,181905,000002,DD03
06/04/2018,Burnham-on-Sea,Sedgemoor District Council,P/7712480508003280,Non-Domestic Rates,"1,488.00",0080012290,181906,000002,DD03
06/04/2018,Burnham-on-Sea,Sedgemoor District Council,P/7712480508003280,Non-Domestic Rates,"1,488.00",0080012290,181907,000002,DD03
06/04/2018,Burnham-on-Sea,Sedgemoor District Council,P/7712480508003280,Non-Domestic Rates,"1,488.00",0080012290,181908,000002,DD03
06/04/2018,Burnham-on-Sea,Sedgemoor District Council,P/7712480508003280,Non-Domestic Rates,"1,488.00",0080012290,181909,000002,DD03
06/04/2018,Burnham-on-Sea,Sedgemoor District Council,P/7712480508003280,Non-Domestic Rates,"1,488.00",0080012290,181910,000002,DD03
10/04/2018,Bideford,Torridge District Council,P/100804100900162:,Non-Domestic Rates,"1,479.00",0010012472,181902,000002,DD03
10/04/2018,Bideford,Torridge District Council,P/100804100900162:,Non-Domestic Rates,"1,479.00",0010012472,181903,000002,DD03
10/04/2018,Bideford,Torridge District Council,P/100804100900162:,Non-Domestic Rates,"1,479.00",0010012472,181904,000002,DD03
10/04/2018,Bideford,Torridge District Council,P/100804100900162:,Non-Domestic Rates,"1,479.00",0010012472,181905,000002,DD03
10/04/2018,Bideford,Torridge District Council,P/100804100900162:,Non-Domestic Rates,"1,479.00",0010012472,181906,000002,DD03
10/04/2018,Bideford,Torridge District Council,P/100804100900162:,Non-Domestic Rates,"1,479.00",0010012472,181907,000002,DD03
10/04/2018,Bideford,Torridge District Council,P/100804100900162:,Non-Domestic Rates,"1,479.00",0010012472,181908,000002,DD03
10/04/2018,Bideford,Torridge District Council,P/100804100900162:,Non-Domestic Rates,"1,479.00",0010012472,181909,000002,DD03
10/04/2018,Bideford,Torridge District Council,P/100804100900162:,Non-Domestic Rates,"1,479.00",0010012472,181910,000002,DD03
10/04/2018,Bideford,Torridge District Council,P/100804100900162:,Non-Domestic Rates,"1,476.54",0010012472,181901,000005,DD03
24/04/2018,Democratic Services,Plymouth City Council,Legal services provided by Plymouth CC,Legal Services,"1,470.50",0060058818,181901,000005,LA02
16/04/2018,Fire Behaviour School,Wessex Power Technology Ltd,1 x SQ1025AL - 16 Channel Thermocouple,Trng Equip Miscellaneous,"1,459.00",0030029118,181901,000005,HA13
10/04/2018,Ilfracombe,North Devon District Council,P/93438142(2018/2019),Non-Domestic Rates,"1,446.46",0010012474,181901,000005,DD03
09/04/2018,Tavistock,West Devon Borough Council,P/30008618(2018/19),Non-Domestic Rates,"1,446.46",0025017285,181901,000005,DD03
10/04/2018,Ilfracombe,North Devon District Council,P/93438142(2018/2019),Non-Domestic Rates,"1,445.00",0010012474,181902,000002,DD03
10/04/2018,Ilfracombe,North Devon District Council,P/93438142(2018/2019),Non-Domestic Rates,"1,445.00",0010012474,181903,000002,DD03
10/04/2018,Ilfracombe,North Devon District Council,P/93438142(2018/2019),Non-Domestic Rates,"1,445.00",0010012474,181904,000002,DD03
10/04/2018,Ilfracombe,North Devon District Council,P/93438142(2018/2019),Non-Domestic Rates,"1,445.00",0010012474,181905,000002,DD03
10/04/2018,Ilfracombe,North Devon District Council,P/93438142(2018/2019),Non-Domestic Rates,"1,445.00",0010012474,181906,000002,DD03
10/04/2018,Ilfracombe,North Devon District Council,P/93438142(2018/2019),Non-Domestic Rates,"1,445.00",0010012474,181907,000002,DD03
10/04/2018,Ilfracombe,North Devon District Council,P/93438142(2018/2019),Non-Domestic Rates,"1,445.00",0010012474,181908,000002,DD03
10/04/2018,Ilfracombe,North Devon District Council,P/93438142(2018/2019),Non-Domestic Rates,"1,445.00",0010012474,181909,000002,DD03
10/04/2018,Ilfracombe,North Devon District Council,P/93438142(2018/2019),Non-Domestic Rates,"1,445.00",0010012474,181910,000002,DD03
09/04/2018,Tavistock,West Devon Borough Council,P/30008618(2018/19),Non-Domestic Rates,"1,445.00",0025017285,181902,000002,DD03
09/04/2018,Tavistock,West Devon Borough Council,P/30008618(2018/19),Non-Domestic Rates,"1,445.00",0025017285,181903,000002,DD03
09/04/2018,Tavistock,West Devon Borough Council,P/30008618(2018/19),Non-Domestic Rates,"1,445.00",0025017285,181904,000002,DD03
09/04/2018,Tavistock,West Devon Borough Council,P/30008618(2018/19),Non-Domestic Rates,"1,445.00",0025017285,181905,000002,DD03
09/04/2018,Tavistock,West Devon Borough Council,P/30008618(2018/19),Non-Domestic Rates,"1,445.00",0025017285,181906,000002,DD03
09/04/2018,Tavistock,West Devon Borough Council,P/30008618(2018/19),Non-Domestic Rates,"1,445.00",0025017285,181907,000002,DD03
09/04/2018,Tavistock,West Devon Borough Council,P/30008618(2018/19),Non-Domestic Rates,"1,445.00",0025017285,181908,000002,DD03
09/04/2018,Tavistock,West Devon Borough Council,P/30008618(2018/19),Non-Domestic Rates,"1,445.00",0025017285,181909,000002,DD03
09/04/2018,Tavistock,West Devon Borough Council,P/30008618(2018/19),Non-Domestic Rates,"1,445.00",0025017285,181910,000002,DD03
11/04/2018,Public Relations,Brightsea Print Group,Printing of Your Shout! magazine Spring,Printing/Stationery/Photocopy,"1,442.00",0060058615,181901,000002,JA01
06/04/2018,Williton,West Somerset Council,P/80015278(2018/19),Non-Domestic Rates,"1,440.00",0080012291,181901,000005,DD03
06/04/2018,Williton,West Somerset Council,P/80015278(2018/19),Non-Domestic Rates,"1,440.00",0080012291,181902,000002,DD03
06/04/2018,Williton,West Somerset Council,P/80015278(2018/19),Non-Domestic Rates,"1,440.00",0080012291,181903,000002,DD03
06/04/2018,Williton,West Somerset Council,P/80015278(2018/19),Non-Domestic Rates,"1,440.00",0080012291,181904,000002,DD03
06/04/2018,Williton,West Somerset Council,P/80015278(2018/19),Non-Domestic Rates,"1,440.00",0080012291,181905,000002,DD03
06/04/2018,Williton,West Somerset Council,P/80015278(2018/19),Non-Domestic Rates,"1,440.00",0080012291,181906,000002,DD03
06/04/2018,Williton,West Somerset Council,P/80015278(2018/19),Non-Domestic Rates,"1,440.00",0080012291,181907,000002,DD03
06/04/2018,Williton,West Somerset Council,P/80015278(2018/19),Non-Domestic Rates,"1,440.00",0080012291,181908,000002,DD03
06/04/2018,Williton,West Somerset Council,P/80015278(2018/19),Non-Domestic Rates,"1,440.00",0080012291,181909,000002,DD03
06/04/2018,Williton,West Somerset Council,P/80015278(2018/19),Non-Domestic Rates,"1,440.00",0080012291,181910,000002,DD03
11/04/2018,Wells,Mendip District Council,P/818501215000.,Non-Domestic Rates,"1,440.00",0080012304,181901,000006,DD03
11/04/2018,Wells,Mendip District Council,P/818501215000.,Non-Domestic Rates,"1,440.00",0080012304,181902,000002,DD03
11/04/2018,Wells,Mendip District Council,P/818501215000.,Non-Domestic Rates,"1,440.00",0080012304,181903,000002,DD03
11/04/2018,Wells,Mendip District Council,P/818501215000.,Non-Domestic Rates,"1,440.00",0080012304,181904,000002,DD03
11/04/2018,Wells,Mendip District Council,P/818501215000.,Non-Domestic Rates,"1,440.00",0080012304,181905,000002,DD03
11/04/2018,Wells,Mendip District Council,P/818501215000.,Non-Domestic Rates,"1,440.00",0080012304,181906,000002,DD03
11/04/2018,Wells,Mendip District Council,P/818501215000.,Non-Domestic Rates,"1,440.00",0080012304,181907,000002,DD03
11/04/2018,Wells,Mendip District Council,P/818501215000.,Non-Domestic Rates,"1,440.00",0080012304,181908,000002,DD03
11/04/2018,Wells,Mendip District Council,P/818501215000.,Non-Domestic Rates,"1,440.00",0080012304,181909,000002,DD03
11/04/2018,Wells,Mendip District Council,P/818501215000.,Non-Domestic Rates,"1,440.00",0080012304,181910,000002,DD03
04/04/2018,Uniforms PPE,W M Sugden & Sons Ltd,MALE CARGO TROUSERS (BLACK),Workwear,"1,428.90",0085016718,181901,000003,HG03
10/04/2018,Dartmouth,South Hams District Council,P/9124027X(2018/19),Non-Domestic Rates,"1,404.00",0015014975,181901,000004,DD03
10/04/2018,Dartmouth,South Hams District Council,P/9124027X(2018/19),Non-Domestic Rates,"1,404.00",0015014975,181902,000002,DD03
10/04/2018,Dartmouth,South Hams District Council,P/9124027X(2018/19),Non-Domestic Rates,"1,404.00",0015014975,181903,000002,DD03
10/04/2018,Dartmouth,South Hams District Council,P/9124027X(2018/19),Non-Domestic Rates,"1,404.00",0015014975,181904,000002,DD03
10/04/2018,Dartmouth,South Hams District Council,P/9124027X(2018/19),Non-Domestic Rates,"1,404.00",0015014975,181905,000002,DD03
10/04/2018,Dartmouth,South Hams District Council,P/9124027X(2018/19),Non-Domestic Rates,"1,404.00",0015014975,181906,000002,DD03
10/04/2018,Dartmouth,South Hams District Council,P/9124027X(2018/19),Non-Domestic Rates,"1,404.00",0015014975,181907,000002,DD03
10/04/2018,Dartmouth,South Hams District Council,P/9124027X(2018/19),Non-Domestic Rates,"1,404.00",0015014975,181908,000002,DD03
10/04/2018,Dartmouth,South Hams District Council,P/9124027X(2018/19),Non-Domestic Rates,"1,404.00",0015014975,181909,000002,DD03
10/04/2018,Dartmouth,South Hams District Council,P/9124027X(2018/19),Non-Domestic Rates,"1,404.00",0015014975,181910,000002,DD03
11/04/2018,ESMCP (Reserve funding),Vodafone,Option 3: Two fully diverse PSN,ICT Desktop Service,"1,391.74",0060058675,181901,000003,HA20
17/04/2018,Human Resources,Hammet Street Consultants,March invoice for Counselling services,Occupational Health Unit,"1,380.00",0060058752,181901,000002,LA09
13/04/2018,FF Fitness Monitor & Support,Automotive Leasing Limited,SERVICE,Lease Car Service Admin,"1,377.00",0040014016,181901,000002,FE80
24/04/2018,Democratic Services,Plymouth City Council,Legal services provided by Plymouth CC,Legal Services,"1,377.00",0060058833,181901,000005,LA02
04/04/2018,ICT Delivery,Weaver IT Solutions Ltd,Services of Agency Worker,Agency Staff Admin,"1,375.00",0072013120,181901,000005,AW19
04/04/2018,Topsham,HAG Shutters & Grilles Limited,Topsham - Rewire the existing push,Planned Maint Proj Contractor,"1,374.00",0070034436,181901,000005,DA05
24/04/2018,Democratic Services,Plymouth City Council,Legal services provided by Plymouth CC,Legal Services,"1,360.00",0060058830,181901,000005,LA02
10/04/2018,Ops Licence School,Capita Property & Infastructure,Plympton - Survey Report - Electrical,Planned Maint Proj Contractor,"1,350.00",0070033208,181901,000003,DA05
09/04/2018,Crownhill Vehicle Engineering,Plymouth City Council,P/130203776327294,Non-Domestic Rates,"1,338.71",0025017278,181901,000006,DD03
09/04/2018,Crownhill Vehicle Engineering,Plymouth City Council,P/130203776327294,Non-Domestic Rates,"1,338.00",0025017278,181902,000002,DD03
09/04/2018,Crownhill Vehicle Engineering,Plymouth City Council,P/130203776327294,Non-Domestic Rates,"1,338.00",0025017278,181903,000002,DD03
09/04/2018,Crownhill Vehicle Engineering,Plymouth City Council,P/130203776327294,Non-Domestic Rates,"1,338.00",0025017278,181904,000002,DD03
09/04/2018,Crownhill Vehicle Engineering,Plymouth City Council,P/130203776327294,Non-Domestic Rates,"1,338.00",0025017278,181905,000002,DD03
09/04/2018,Crownhill Vehicle Engineering,Plymouth City Council,P/130203776327294,Non-Domestic Rates,"1,338.00",0025017278,181906,000002,DD03
09/04/2018,Crownhill Vehicle Engineering,Plymouth City Council,P/130203776327294,Non-Domestic Rates,"1,338.00",0025017278,181907,000002,DD03
09/04/2018,Crownhill Vehicle Engineering,Plymouth City Council,P/130203776327294,Non-Domestic Rates,"1,338.00",0025017278,181908,000002,DD03
09/04/2018,Crownhill Vehicle Engineering,Plymouth City Council,P/130203776327294,Non-Domestic Rates,"1,338.00",0025017278,181909,000002,DD03
09/04/2018,Crownhill Vehicle Engineering,Plymouth City Council,P/130203776327294,Non-Domestic Rates,"1,338.00",0025017278,181910,000002,DD03
11/04/2018,Wincanton,South Somerset District Council,P/069266(2018/2019),Non-Domestic Rates,"1,332.00",0080012301,181901,000005,DD03
11/04/2018,Wincanton,South Somerset District Council,P/069266(2018/2019),Non-Domestic Rates,"1,332.00",0080012301,181902,000002,DD03
11/04/2018,Wincanton,South Somerset District Council,P/069266(2018/2019),Non-Domestic Rates,"1,332.00",0080012301,181903,000002,DD03
11/04/2018,Wincanton,South Somerset District Council,P/069266(2018/2019),Non-Domestic Rates,"1,332.00",0080012301,181904,000002,DD03
11/04/2018,Wincanton,South Somerset District Council,P/069266(2018/2019),Non-Domestic Rates,"1,332.00",0080012301,181905,000002,DD03
11/04/2018,Wincanton,South Somerset District Council,P/069266(2018/2019),Non-Domestic Rates,"1,332.00",0080012301,181906,000002,DD03
11/04/2018,Wincanton,South Somerset District Council,P/069266(2018/2019),Non-Domestic Rates,"1,332.00",0080012301,181907,000002,DD03
11/04/2018,Wincanton,South Somerset District Council,P/069266(2018/2019),Non-Domestic Rates,"1,332.00",0080012301,181908,000002,DD03
11/04/2018,Wincanton,South Somerset District Council,P/069266(2018/2019),Non-Domestic Rates,"1,332.00",0080012301,181909,000002,DD03
11/04/2018,Wincanton,South Somerset District Council,P/069266(2018/2019),Non-Domestic Rates,"1,332.00",0080012301,181910,000002,DD03
11/04/2018,Martock,South Somerset District Council,P/065531(2018/2019),Non-Domestic Rates,"1,320.00",0080012297,181901,000005,DD03
11/04/2018,Martock,South Somerset District Council,P/065531(2018/2019),Non-Domestic Rates,"1,320.00",0080012297,181902,000002,DD03
11/04/2018,Martock,South Somerset District Council,P/065531(2018/2019),Non-Domestic Rates,"1,320.00",0080012297,181903,000002,DD03
11/04/2018,Martock,South Somerset District Council,P/065531(2018/2019),Non-Domestic Rates,"1,320.00",0080012297,181904,000002,DD03
11/04/2018,Martock,South Somerset District Council,P/065531(2018/2019),Non-Domestic Rates,"1,320.00",0080012297,181905,000002,DD03
11/04/2018,Martock,South Somerset District Council,P/065531(2018/2019),Non-Domestic Rates,"1,320.00",0080012297,181906,000002,DD03
11/04/2018,Martock,South Somerset District Council,P/065531(2018/2019),Non-Domestic Rates,"1,320.00",0080012297,181907,000002,DD03
11/04/2018,Martock,South Somerset District Council,P/065531(2018/2019),Non-Domestic Rates,"1,320.00",0080012297,181908,000002,DD03
11/04/2018,Martock,South Somerset District Council,P/065531(2018/2019),Non-Domestic Rates,"1,320.00",0080012297,181909,000002,DD03
11/04/2018,Martock,South Somerset District Council,P/065531(2018/2019),Non-Domestic Rates,"1,320.00",0080012297,181910,000002,DD03
05/04/2018,Sidmouth,East Devon District Council,P/30068338(2018/19),Non-Domestic Rates,"1,294.00",0020015603,181902,000002,DD03
05/04/2018,Sidmouth,East Devon District Council,P/30068338(2018/19),Non-Domestic Rates,"1,294.00",0020015603,181903,000002,DD03
05/04/2018,Sidmouth,East Devon District Council,P/30068338(2018/19),Non-Domestic Rates,"1,294.00",0020015603,181904,000002,DD03
05/04/2018,Sidmouth,East Devon District Council,P/30068338(2018/19),Non-Domestic Rates,"1,294.00",0020015603,181905,000002,DD03
05/04/2018,Sidmouth,East Devon District Council,P/30068338(2018/19),Non-Domestic Rates,"1,294.00",0020015603,181906,000002,DD03
05/04/2018,Sidmouth,East Devon District Council,P/30068338(2018/19),Non-Domestic Rates,"1,294.00",0020015603,181907,000002,DD03
05/04/2018,Sidmouth,East Devon District Council,P/30068338(2018/19),Non-Domestic Rates,"1,294.00",0020015603,181908,000002,DD03
05/04/2018,Sidmouth,East Devon District Council,P/30068338(2018/19),Non-Domestic Rates,"1,294.00",0020015603,181909,000002,DD03
05/04/2018,Sidmouth,East Devon District Council,P/30068338(2018/19),Non-Domestic Rates,"1,294.00",0020015603,181910,000002,DD03
05/04/2018,Sidmouth,East Devon District Council,P/30068338(2018/19),Non-Domestic Rates,"1,293.10",0020015603,181901,000005,DD03
18/04/2018,Crownhill,BSS Group PLC,Crownhill - Replacement pumps,Planned Project Mats Tech,"1,290.98",0070034538,181901,000005,DA13
13/04/2018,FF Fitness Monitor & Support,Automotive Leasing Limited,SERVICE,Lease Car Service Admin,"1,288.00",0040014015,181901,000002,FE80
13/04/2018,FF Fitness Monitor & Support,Automotive Leasing Limited,SERVICE,Lease Car Service Admin,"1,288.00",0040014017,181901,000002,FE80
23/04/2018,FF Fitness Monitor & Support,Automotive Leasing Limited,SERVICE,Lease Car Service Admin,"1,288.00",0040014028,181901,000002,FE80
23/04/2018,FF Fitness Monitor & Support,Automotive Leasing Limited,SERVICE,Lease Car Service Admin,"1,288.00",0040014029,181901,000002,FE80
10/04/2018,Okehampton,West Devon Borough Council,P/300002452(2018/19).,Non-Domestic Rates,"1,247.97",0020015627,181901,000006,DD03
10/04/2018,Okehampton,West Devon Borough Council,P/300002452(2018/19).,Non-Domestic Rates,"1,243.00",0020015627,181902,000002,DD03
10/04/2018,Okehampton,West Devon Borough Council,P/300002452(2018/19).,Non-Domestic Rates,"1,243.00",0020015627,181903,000002,DD03
10/04/2018,Okehampton,West Devon Borough Council,P/300002452(2018/19).,Non-Domestic Rates,"1,243.00",0020015627,181904,000002,DD03
10/04/2018,Okehampton,West Devon Borough Council,P/300002452(2018/19).,Non-Domestic Rates,"1,243.00",0020015627,181905,000002,DD03
10/04/2018,Okehampton,West Devon Borough Council,P/300002452(2018/19).,Non-Domestic Rates,"1,243.00",0020015627,181906,000002,DD03
10/04/2018,Okehampton,West Devon Borough Council,P/300002452(2018/19).,Non-Domestic Rates,"1,243.00",0020015627,181907,000002,DD03
10/04/2018,Okehampton,West Devon Borough Council,P/300002452(2018/19).,Non-Domestic Rates,"1,243.00",0020015627,181908,000002,DD03
10/04/2018,Okehampton,West Devon Borough Council,P/300002452(2018/19).,Non-Domestic Rates,"1,243.00",0020015627,181909,000002,DD03
10/04/2018,Okehampton,West Devon Borough Council,P/300002452(2018/19).,Non-Domestic Rates,"1,243.00",0020015627,181910,000002,DD03
04/04/2018,Hydrants Maintenance,South West Water,17090-38-49211,Hydrants Maintenance,"1,240.75",0040013970,181901,000005,HE02
04/04/2018,Hydrants Maintenance,South West Water,17112-10-17787,Hydrants Maintenance,"1,240.75",0040013971,181901,000005,HE02
11/04/2018,Crewkerne,South Somerset District Council,P/059301(2018/2019),Non-Domestic Rates,"1,236.00",0080012299,181901,000006,DD03
11/04/2018,Crewkerne,South Somerset District Council,P/059301(2018/2019),Non-Domestic Rates,"1,236.00",0080012299,181902,000002,DD03
11/04/2018,Crewkerne,South Somerset District Council,P/059301(2018/2019),Non-Domestic Rates,"1,236.00",0080012299,181903,000002,DD03
11/04/2018,Crewkerne,South Somerset District Council,P/059301(2018/2019),Non-Domestic Rates,"1,236.00",0080012299,181904,000002,DD03
11/04/2018,Crewkerne,South Somerset District Council,P/059301(2018/2019),Non-Domestic Rates,"1,236.00",0080012299,181905,000002,DD03
11/04/2018,Crewkerne,South Somerset District Council,P/059301(2018/2019),Non-Domestic Rates,"1,236.00",0080012299,181906,000002,DD03
11/04/2018,Crewkerne,South Somerset District Council,P/059301(2018/2019),Non-Domestic Rates,"1,236.00",0080012299,181907,000002,DD03
11/04/2018,Crewkerne,South Somerset District Council,P/059301(2018/2019),Non-Domestic Rates,"1,236.00",0080012299,181908,000002,DD03
11/04/2018,Crewkerne,South Somerset District Council,P/059301(2018/2019),Non-Domestic Rates,"1,236.00",0080012299,181909,000002,DD03
11/04/2018,Crewkerne,South Somerset District Council,P/059301(2018/2019),Non-Domestic Rates,"1,236.00",0080012299,181910,000002,DD03
11/04/2018,Glastonbury Fire Station,Mendip District Council,P/813302063000.,Non-Domestic Rates,"1,224.00",0080012303,181901,000005,DD03
11/04/2018,Glastonbury Fire Station,Mendip District Council,P/813302063000.,Non-Domestic Rates,"1,224.00",0080012303,181902,000002,DD03
11/04/2018,Glastonbury Fire Station,Mendip District Council,P/813302063000.,Non-Domestic Rates,"1,224.00",0080012303,181903,000002,DD03
11/04/2018,Glastonbury Fire Station,Mendip District Council,P/813302063000.,Non-Domestic Rates,"1,224.00",0080012303,181904,000002,DD03
11/04/2018,Glastonbury Fire Station,Mendip District Council,P/813302063000.,Non-Domestic Rates,"1,224.00",0080012303,181905,000002,DD03
11/04/2018,Glastonbury Fire Station,Mendip District Council,P/813302063000.,Non-Domestic Rates,"1,224.00",0080012303,181906,000002,DD03
11/04/2018,Glastonbury Fire Station,Mendip District Council,P/813302063000.,Non-Domestic Rates,"1,224.00",0080012303,181907,000002,DD03
11/04/2018,Glastonbury Fire Station,Mendip District Council,P/813302063000.,Non-Domestic Rates,"1,224.00",0080012303,181908,000002,DD03
11/04/2018,Glastonbury Fire Station,Mendip District Council,P/813302063000.,Non-Domestic Rates,"1,224.00",0080012303,181909,000002,DD03
11/04/2018,Glastonbury Fire Station,Mendip District Council,P/813302063000.,Non-Domestic Rates,"1,224.00",0080012303,181910,000002,DD03
09/04/2018,Access and Rescue School,Rigging & Rescue Ltd,"06/02/2018	SHACS Level 2 173.41 x 2",External Trainer Hire,"1,213.87",0030029111,181901,000005,AE15
10/04/2018,Newton Abbot,Teignbridge District Council,P/30064031(2018/2019),Non-Domestic Rates,"1,210.00",0015014978,181902,000002,DD03
10/04/2018,Newton Abbot,Teignbridge District Council,P/30064031(2018/2019),Non-Domestic Rates,"1,210.00",0015014978,181903,000002,DD03
10/04/2018,Newton Abbot,Teignbridge District Council,P/30064031(2018/2019),Non-Domestic Rates,"1,210.00",0015014978,181904,000002,DD03
10/04/2018,Newton Abbot,Teignbridge District Council,P/30064031(2018/2019),Non-Domestic Rates,"1,210.00",0015014978,181905,000002,DD03
10/04/2018,Newton Abbot,Teignbridge District Council,P/30064031(2018/2019),Non-Domestic Rates,"1,210.00",0015014978,181906,000002,DD03
10/04/2018,Newton Abbot,Teignbridge District Council,P/30064031(2018/2019),Non-Domestic Rates,"1,210.00",0015014978,181907,000002,DD03
10/04/2018,Newton Abbot,Teignbridge District Council,P/30064031(2018/2019),Non-Domestic Rates,"1,210.00",0015014978,181908,000002,DD03
10/04/2018,Newton Abbot,Teignbridge District Council,P/30064031(2018/2019),Non-Domestic Rates,"1,210.00",0015014978,181909,000002,DD03
10/04/2018,Newton Abbot,Teignbridge District Council,P/30064031(2018/2019),Non-Domestic Rates,"1,210.00",0015014978,181910,000002,DD03
10/04/2018,Totnes,South Hams District Council,P/91241088(2018/2019),Non-Domestic Rates,"1,210.00",0015014980,181902,000002,DD03
10/04/2018,Totnes,South Hams District Council,P/91241088(2018/2019),Non-Domestic Rates,"1,210.00",0015014980,181903,000002,DD03
10/04/2018,Totnes,South Hams District Council,P/91241088(2018/2019),Non-Domestic Rates,"1,210.00",0015014980,181904,000002,DD03
10/04/2018,Totnes,South Hams District Council,P/91241088(2018/2019),Non-Domestic Rates,"1,210.00",0015014980,181905,000002,DD03
10/04/2018,Totnes,South Hams District Council,P/91241088(2018/2019),Non-Domestic Rates,"1,210.00",0015014980,181906,000002,DD03
10/04/2018,Totnes,South Hams District Council,P/91241088(2018/2019),Non-Domestic Rates,"1,210.00",0015014980,181907,000002,DD03
10/04/2018,Totnes,South Hams District Council,P/91241088(2018/2019),Non-Domestic Rates,"1,210.00",0015014980,181908,000002,DD03
10/04/2018,Totnes,South Hams District Council,P/91241088(2018/2019),Non-Domestic Rates,"1,210.00",0015014980,181909,000002,DD03
10/04/2018,Totnes,South Hams District Council,P/91241088(2018/2019),Non-Domestic Rates,"1,210.00",0015014980,181910,000002,DD03
10/04/2018,Newton Abbot,Teignbridge District Council,P/30064031(2018/2019),Non-Domestic Rates,"1,208.89",0015014978,181901,000005,DD03
10/04/2018,Totnes,South Hams District Council,P/91241088(2018/2019),Non-Domestic Rates,"1,208.89",0015014980,181901,000005,DD03
17/04/2018,Human Resources,Aviva Life & Pensions UK LTD,Employer Pensions Charge,Finance Services,"1,200.00",0060058742,181901,000002,LA05
05/04/2018,Honiton,East Devon District Council,P/30084617(2018/19),Non-Domestic Rates,"1,178.82",0020015606,181901,000005,DD03
05/04/2018,Honiton,East Devon District Council,P/30084617(2018/19),Non-Domestic Rates,"1,176.00",0020015606,181902,000002,DD03
05/04/2018,Honiton,East Devon District Council,P/30084617(2018/19),Non-Domestic Rates,"1,176.00",0020015606,181903,000002,DD03
05/04/2018,Honiton,East Devon District Council,P/30084617(2018/19),Non-Domestic Rates,"1,176.00",0020015606,181904,000002,DD03
05/04/2018,Honiton,East Devon District Council,P/30084617(2018/19),Non-Domestic Rates,"1,176.00",0020015606,181905,000002,DD03
05/04/2018,Honiton,East Devon District Council,P/30084617(2018/19),Non-Domestic Rates,"1,176.00",0020015606,181906,000002,DD03
05/04/2018,Honiton,East Devon District Council,P/30084617(2018/19),Non-Domestic Rates,"1,176.00",0020015606,181907,000002,DD03
05/04/2018,Honiton,East Devon District Council,P/30084617(2018/19),Non-Domestic Rates,"1,176.00",0020015606,181908,000002,DD03
05/04/2018,Honiton,East Devon District Council,P/30084617(2018/19),Non-Domestic Rates,"1,176.00",0020015606,181909,000002,DD03
05/04/2018,Honiton,East Devon District Council,P/30084617(2018/19),Non-Domestic Rates,"1,176.00",0020015606,181910,000002,DD03
25/04/2018,Chelston Vehicle Engineering,Premier Coachworks,NEW REAR DOORS  (CMT3216),Contractor Repair,"1,167.66",0057018772,181901,000005,FA23
09/04/2018,ICT Delivery,Civica UK Limited,CFRMIS TEST Upgrade to 6.2 SP7,ICT Fire Safety Syst Supp Srv,"1,165.00",0072013125,181901,000005,HA44
05/04/2018,Democratic Services,York Insignia,Order for 30 hand painted DSFRS shields,Hospitality CFO,"1,160.00",0060058632,181901,000005,JA20
24/04/2018,Democratic Services,Plymouth City Council,Legal services provided by Plymouth CC,Legal Services,"1,139.00",0060058822,181901,000005,LA02
30/04/2018,Fire Headquarters,Integral,SHQ Driver Training - A/C Modification,Planned Maint Proj Contractor,"1,137.98",0070034594,181901,000005,DA05
04/04/2018,Middlemoor Fire Station,Trinity Fire & Security Systems,Middlemoor - Upgrade part of CCTV System,Planned Maint Proj Contractor,"1,128.31",0070034451,181901,000005,DA05
10/04/2018,Bovey Tracey,Teignbridge District Council,P/30085870(2018/2019),Non-Domestic Rates,"1,126.00",0015014971,181902,000002,DD03
10/04/2018,Bovey Tracey,Teignbridge District Council,P/30085870(2018/2019),Non-Domestic Rates,"1,126.00",0015014971,181903,000002,DD03
10/04/2018,Bovey Tracey,Teignbridge District Council,P/30085870(2018/2019),Non-Domestic Rates,"1,126.00",0015014971,181904,000002,DD03
10/04/2018,Bovey Tracey,Teignbridge District Council,P/30085870(2018/2019),Non-Domestic Rates,"1,126.00",0015014971,181905,000002,DD03
10/04/2018,Bovey Tracey,Teignbridge District Council,P/30085870(2018/2019),Non-Domestic Rates,"1,126.00",0015014971,181906,000002,DD03
10/04/2018,Bovey Tracey,Teignbridge District Council,P/30085870(2018/2019),Non-Domestic Rates,"1,126.00",0015014971,181907,000002,DD03
10/04/2018,Bovey Tracey,Teignbridge District Council,P/30085870(2018/2019),Non-Domestic Rates,"1,126.00",0015014971,181908,000002,DD03
10/04/2018,Bovey Tracey,Teignbridge District Council,P/30085870(2018/2019),Non-Domestic Rates,"1,126.00",0015014971,181909,000002,DD03
10/04/2018,Bovey Tracey,Teignbridge District Council,P/30085870(2018/2019),Non-Domestic Rates,"1,126.00",0015014971,181910,000002,DD03
30/04/2018,Somerton,Trinity Fire & Security Systems,Somerton - Replace Access Control Panel,Unforseen Electrical Contracto,"1,125.77",0070034590,181901,000005,DA03
10/04/2018,Bovey Tracey,Teignbridge District Council,P/30085870(2018/2019),Non-Domestic Rates,"1,124.69",0015014971,181901,000005,DD03
17/04/2018,Human Resources,MHR International UK Limited,Payroll Consultancy,Finance Services,"1,123.50",0060058746,181901,000005,LA05
09/04/2018,Insurance & Risk,DriveTech,Driving license checks,External Prof Support/Advice,"1,118.25",0060058654,181901,000005,HJ02
30/04/2018,Response Policy & Specialist C,R3 Safety & Rescue Ltd,3 places on MOD 5 WIM course,Specialist Rescue Equipment,"1,104.99",0060058880,181901,000005,HC02
11/04/2018,Camels Head,Certas Energy UK Ltd,To supply grade gas oil A2,Boiler Fuel,"1,094.07",0025017276,181901,000005,DB03
13/04/2018,Princetown,I J Cannings & Son Ltd,Princetown - Lightning Protection,Planned Maint Proj Contractor,"1,078.00",0070034492,181901,000005,DA05
10/04/2018,Hartland,Torridge District Council,Stn 08,Non-Domestic Rates,"1,061.82",0010012467,181901,000004,DD03
27/04/2018,Insurance & Risk,Nationwide Crash Repair Centre Ltd,D1671/2187,Vehicle Ins Claims (+ Excess),"1,059.37",0040014030,181901,000005,FC03
06/04/2018,Minehead,West Somerset Council,P/80006595(2018/19),Non-Domestic Rates,"1,056.00",0080012283,181901,000005,DD03
06/04/2018,Minehead,West Somerset Council,P/80006595(2018/19),Non-Domestic Rates,"1,056.00",0080012283,181902,000002,DD03
06/04/2018,Minehead,West Somerset Council,P/80006595(2018/19),Non-Domestic Rates,"1,056.00",0080012283,181903,000002,DD03
06/04/2018,Minehead,West Somerset Council,P/80006595(2018/19),Non-Domestic Rates,"1,056.00",0080012283,181904,000002,DD03
06/04/2018,Minehead,West Somerset Council,P/80006595(2018/19),Non-Domestic Rates,"1,056.00",0080012283,181905,000002,DD03
06/04/2018,Minehead,West Somerset Council,P/80006595(2018/19),Non-Domestic Rates,"1,056.00",0080012283,181906,000002,DD03
06/04/2018,Minehead,West Somerset Council,P/80006595(2018/19),Non-Domestic Rates,"1,056.00",0080012283,181907,000002,DD03
06/04/2018,Minehead,West Somerset Council,P/80006595(2018/19),Non-Domestic Rates,"1,056.00",0080012283,181908,000002,DD03
06/04/2018,Minehead,West Somerset Council,P/80006595(2018/19),Non-Domestic Rates,"1,056.00",0080012283,181909,000002,DD03
06/04/2018,Minehead,West Somerset Council,P/80006595(2018/19),Non-Domestic Rates,"1,056.00",0080012283,181910,000002,DD03
11/04/2018,Somerton,South Somerset District Council,P/023834(2018/2019),Non-Domestic Rates,"1,056.00",0080012300,181901,000005,DD03
11/04/2018,Somerton,South Somerset District Council,P/023834(2018/2019),Non-Domestic Rates,"1,056.00",0080012300,181902,000002,DD03
11/04/2018,Somerton,South Somerset District Council,P/023834(2018/2019),Non-Domestic Rates,"1,056.00",0080012300,181903,000002,DD03
11/04/2018,Somerton,South Somerset District Council,P/023834(2018/2019),Non-Domestic Rates,"1,056.00",0080012300,181904,000002,DD03
11/04/2018,Somerton,South Somerset District Council,P/023834(2018/2019),Non-Domestic Rates,"1,056.00",0080012300,181905,000002,DD03
11/04/2018,Somerton,South Somerset District Council,P/023834(2018/2019),Non-Domestic Rates,"1,056.00",0080012300,181906,000002,DD03
11/04/2018,Somerton,South Somerset District Council,P/023834(2018/2019),Non-Domestic Rates,"1,056.00",0080012300,181907,000002,DD03
11/04/2018,Somerton,South Somerset District Council,P/023834(2018/2019),Non-Domestic Rates,"1,056.00",0080012300,181908,000002,DD03
11/04/2018,Somerton,South Somerset District Council,P/023834(2018/2019),Non-Domestic Rates,"1,056.00",0080012300,181909,000002,DD03
11/04/2018,Somerton,South Somerset District Council,P/023834(2018/2019),Non-Domestic Rates,"1,056.00",0080012300,181910,000002,DD03
09/04/2018,Plymstock,Plymouth City Council,P/130202741773417,Non-Domestic Rates,"1,044.00",0025017279,181901,000005,DD03
09/04/2018,Plymstock,Plymouth City Council,P/130202741773417,Non-Domestic Rates,"1,044.00",0025017279,181902,000002,DD03
09/04/2018,Plymstock,Plymouth City Council,P/130202741773417,Non-Domestic Rates,"1,044.00",0025017279,181903,000002,DD03
09/04/2018,Plymstock,Plymouth City Council,P/130202741773417,Non-Domestic Rates,"1,044.00",0025017279,181904,000002,DD03
09/04/2018,Plymstock,Plymouth City Council,P/130202741773417,Non-Domestic Rates,"1,044.00",0025017279,181905,000002,DD03
09/04/2018,Plymstock,Plymouth City Council,P/130202741773417,Non-Domestic Rates,"1,044.00",0025017279,181906,000002,DD03
09/04/2018,Plymstock,Plymouth City Council,P/130202741773417,Non-Domestic Rates,"1,044.00",0025017279,181907,000002,DD03
09/04/2018,Plymstock,Plymouth City Council,P/130202741773417,Non-Domestic Rates,"1,044.00",0025017279,181908,000002,DD03
09/04/2018,Plymstock,Plymouth City Council,P/130202741773417,Non-Domestic Rates,"1,044.00",0025017279,181909,000002,DD03
09/04/2018,Plymstock,Plymouth City Council,P/130202741773417,Non-Domestic Rates,"1,044.00",0025017279,181910,000002,DD03
09/04/2018,Yelverton,West Devon Borough Council,P/300039700(2018/19),Non-Domestic Rates,"1,044.00",0025017283,181901,000005,DD03
09/04/2018,Yelverton,West Devon Borough Council,P/300039700(2018/19),Non-Domestic Rates,"1,044.00",0025017283,181902,000002,DD03
09/04/2018,Yelverton,West Devon Borough Council,P/300039700(2018/19),Non-Domestic Rates,"1,044.00",0025017283,181903,000002,DD03
09/04/2018,Yelverton,West Devon Borough Council,P/300039700(2018/19),Non-Domestic Rates,"1,044.00",0025017283,181904,000002,DD03
09/04/2018,Yelverton,West Devon Borough Council,P/300039700(2018/19),Non-Domestic Rates,"1,044.00",0025017283,181905,000002,DD03
09/04/2018,Yelverton,West Devon Borough Council,P/300039700(2018/19),Non-Domestic Rates,"1,044.00",0025017283,181906,000002,DD03
09/04/2018,Yelverton,West Devon Borough Council,P/300039700(2018/19),Non-Domestic Rates,"1,044.00",0025017283,181907,000002,DD03
09/04/2018,Yelverton,West Devon Borough Council,P/300039700(2018/19),Non-Domestic Rates,"1,044.00",0025017283,181908,000002,DD03
09/04/2018,Yelverton,West Devon Borough Council,P/300039700(2018/19),Non-Domestic Rates,"1,044.00",0025017283,181909,000002,DD03
09/04/2018,Yelverton,West Devon Borough Council,P/300039700(2018/19),Non-Domestic Rates,"1,044.00",0025017283,181910,000002,DD03
16/04/2018,Insurance & Risk,Nationwide Crash Repair Centre Ltd,FM17/001658,Vehicle Ins Claims (+ Excess),"1,042.83",0040014008,181901,000005,FC03
04/04/2018,Uniforms PPE,W M Sugden & Sons Ltd,MALE CARGO TROUSERS (BLACK),Workwear,"1,039.20",0085016715,181901,000004,HG03
09/04/2018,Light Vehicle Management,Thrifty Car & Van Rentals,Thrifty Daily rentals,Hired Transport,"1,032.87",0100016061,181901,000004,FD01
11/04/2018,Procurement,Police & Crime Commissioner for Cheshire,BLPD Annual Subscription and bluelight,Corporate Membership/Subscript,"1,000.00",0060058684,181901,000005,HJ08
20/04/2018,Democratic Services,Foot Anstey,Legal fees for services up to 28/09/17,Legal Services,"1,000.00",0060058785,181901,000005,LA02
24/04/2018,Democratic Services,Postage By Phone,Postage by phone for SHQ franking,Postages,"1,000.00",0060058847,181901,000002,JA05
30/04/2018,Community & Workplace Equality,Networking Women in the Fire Service,Corporate Affiliate Membership costs,Partnerships,"1,000.00",0060058875,181901,000002,HJ03
17/04/2018,Tiverton,Unicraft Flooring Contractors Ltd,Tiverton - Flooring works,Unforseen Building Contractor,999.00,0070034529,181901,000005,DA01
13/04/2018,Budleigh Salterton,I J Cannings & Son Ltd,Budleigh Salterton - Installation of,Planned Maint Proj Contractor,995.00,0080012334,181901,000005,DA05
11/04/2018,RIV 1-15 - RTC,Clan Tools & Plant Ltd,4 x Lukas eDraulic2 5Ah Li-Ion Battery,Furniture/Equip Purchase,986.00,0040014002,181901,000003,YD01
09/04/2018,Ivybridge,South Hams District Council,P/91263539(2018/19),Non-Domestic Rates,984.00,0025017281,181901,000005,DD03
09/04/2018,Ivybridge,South Hams District Council,P/91263539(2018/19),Non-Domestic Rates,984.00,0025017281,181902,000002,DD03
09/04/2018,Ivybridge,South Hams District Council,P/91263539(2018/19),Non-Domestic Rates,984.00,0025017281,181903,000002,DD03
09/04/2018,Ivybridge,South Hams District Council,P/91263539(2018/19),Non-Domestic Rates,984.00,0025017281,181904,000002,DD03
09/04/2018,Ivybridge,South Hams District Council,P/91263539(2018/19),Non-Domestic Rates,984.00,0025017281,181905,000002,DD03
09/04/2018,Ivybridge,South Hams District Council,P/91263539(2018/19),Non-Domestic Rates,984.00,0025017281,181906,000002,DD03
09/04/2018,Ivybridge,South Hams District Council,P/91263539(2018/19),Non-Domestic Rates,984.00,0025017281,181907,000002,DD03
09/04/2018,Ivybridge,South Hams District Council,P/91263539(2018/19),Non-Domestic Rates,984.00,0025017281,181908,000002,DD03
09/04/2018,Ivybridge,South Hams District Council,P/91263539(2018/19),Non-Domestic Rates,984.00,0025017281,181909,000002,DD03
09/04/2018,Ivybridge,South Hams District Council,P/91263539(2018/19),Non-Domestic Rates,984.00,0025017281,181910,000002,DD03
11/04/2018,Frome,Mendip District Council,"P/812801158000,",Non-Domestic Rates,975.00,0080012302,181902,000002,DD03
11/04/2018,Frome,Mendip District Council,"P/812801158000,",Non-Domestic Rates,975.00,0080012302,181903,000002,DD03
11/04/2018,Frome,Mendip District Council,"P/812801158000,",Non-Domestic Rates,975.00,0080012302,181904,000002,DD03
11/04/2018,Frome,Mendip District Council,"P/812801158000,",Non-Domestic Rates,975.00,0080012302,181905,000002,DD03
11/04/2018,Frome,Mendip District Council,"P/812801158000,",Non-Domestic Rates,975.00,0080012302,181906,000002,DD03
11/04/2018,Frome,Mendip District Council,"P/812801158000,",Non-Domestic Rates,975.00,0080012302,181907,000002,DD03
11/04/2018,Frome,Mendip District Council,"P/812801158000,",Non-Domestic Rates,975.00,0080012302,181908,000002,DD03
11/04/2018,Frome,Mendip District Council,"P/812801158000,",Non-Domestic Rates,975.00,0080012302,181909,000002,DD03
11/04/2018,Frome,Mendip District Council,"P/812801158000,",Non-Domestic Rates,975.00,0080012302,181910,000002,DD03
11/04/2018,Shepton Mallet,Mendip District Council,P/816700321000.,Non-Domestic Rates,975.00,0080012306,181902,000002,DD03
11/04/2018,Shepton Mallet,Mendip District Council,P/816700321000.,Non-Domestic Rates,975.00,0080012306,181903,000002,DD03
11/04/2018,Shepton Mallet,Mendip District Council,P/816700321000.,Non-Domestic Rates,975.00,0080012306,181904,000002,DD03
11/04/2018,Shepton Mallet,Mendip District Council,P/816700321000.,Non-Domestic Rates,975.00,0080012306,181905,000002,DD03
11/04/2018,Shepton Mallet,Mendip District Council,P/816700321000.,Non-Domestic Rates,975.00,0080012306,181906,000002,DD03
11/04/2018,Shepton Mallet,Mendip District Council,P/816700321000.,Non-Domestic Rates,975.00,0080012306,181907,000002,DD03
11/04/2018,Shepton Mallet,Mendip District Council,P/816700321000.,Non-Domestic Rates,975.00,0080012306,181908,000002,DD03
11/04/2018,Shepton Mallet,Mendip District Council,P/816700321000.,Non-Domestic Rates,975.00,0080012306,181909,000002,DD03
11/04/2018,Shepton Mallet,Mendip District Council,P/816700321000.,Non-Domestic Rates,975.00,0080012306,181910,000002,DD03
11/04/2018,Frome,Mendip District Council,"P/812801158000,",Non-Domestic Rates,971.34,0080012302,181901,000005,DD03
11/04/2018,Shepton Mallet,Mendip District Council,P/816700321000.,Non-Domestic Rates,971.34,0080012306,181901,000005,DD03
05/04/2018,Ottery St Mary,East Devon District Council,P/30039289(2018/19),Non-Domestic Rates,948.00,0020015605,181901,000005,DD03
05/04/2018,Ottery St Mary,East Devon District Council,P/30039289(2018/19),Non-Domestic Rates,948.00,0020015605,181902,000002,DD03
05/04/2018,Ottery St Mary,East Devon District Council,P/30039289(2018/19),Non-Domestic Rates,948.00,0020015605,181903,000002,DD03
05/04/2018,Ottery St Mary,East Devon District Council,P/30039289(2018/19),Non-Domestic Rates,948.00,0020015605,181904,000002,DD03
05/04/2018,Ottery St Mary,East Devon District Council,P/30039289(2018/19),Non-Domestic Rates,948.00,0020015605,181905,000002,DD03
05/04/2018,Ottery St Mary,East Devon District Council,P/30039289(2018/19),Non-Domestic Rates,948.00,0020015605,181906,000002,DD03
05/04/2018,Ottery St Mary,East Devon District Council,P/30039289(2018/19),Non-Domestic Rates,948.00,0020015605,181907,000002,DD03
05/04/2018,Ottery St Mary,East Devon District Council,P/30039289(2018/19),Non-Domestic Rates,948.00,0020015605,181908,000002,DD03
05/04/2018,Ottery St Mary,East Devon District Council,P/30039289(2018/19),Non-Domestic Rates,948.00,0020015605,181909,000002,DD03
05/04/2018,Ottery St Mary,East Devon District Council,P/30039289(2018/19),Non-Domestic Rates,948.00,0020015605,181910,000002,DD03
09/04/2018,Light Vehicle Management,Lex Autolease Ltd,LB62OEV / XJK / WJ62YKC 25-FEB-18 TO,Lease Car Contribution Uniform,936.60,0040013998,181901,000005,FD72
09/04/2018,Light Vehicle Management,Lex Autolease Ltd,SERVICE,Lease Car Service Uniform,931.80,0040013995,181901,000006,FD80
05/04/2018,Uniforms PPE,W M Sugden & Sons Ltd,MALE CARGO TROUSERS (BLACK),Workwear,919.00,0085016721,181901,000005,HG03
09/04/2018,ICT Delivery,Currys Electrical,CURRYS ONLINE,ICT Desktop Service,915.83,0100015821,181901,000003,HA20
05/04/2018,Tiverton,Mid Devon District Council,P/1611769(2018/2019),Non-Domestic Rates,912.61,0020015602,181901,000005,DD03
05/04/2018,Tiverton,Mid Devon District Council,P/1611769(2018/2019),Non-Domestic Rates,910.00,0020015602,181902,000002,DD03
05/04/2018,Tiverton,Mid Devon District Council,P/1611769(2018/2019),Non-Domestic Rates,910.00,0020015602,181903,000002,DD03
05/04/2018,Tiverton,Mid Devon District Council,P/1611769(2018/2019),Non-Domestic Rates,910.00,0020015602,181904,000002,DD03
05/04/2018,Tiverton,Mid Devon District Council,P/1611769(2018/2019),Non-Domestic Rates,910.00,0020015602,181905,000002,DD03
05/04/2018,Tiverton,Mid Devon District Council,P/1611769(2018/2019),Non-Domestic Rates,910.00,0020015602,181906,000002,DD03
05/04/2018,Tiverton,Mid Devon District Council,P/1611769(2018/2019),Non-Domestic Rates,910.00,0020015602,181907,000002,DD03
05/04/2018,Tiverton,Mid Devon District Council,P/1611769(2018/2019),Non-Domestic Rates,910.00,0020015602,181908,000002,DD03
05/04/2018,Tiverton,Mid Devon District Council,P/1611769(2018/2019),Non-Domestic Rates,910.00,0020015602,181909,000002,DD03
05/04/2018,Tiverton,Mid Devon District Council,P/1611769(2018/2019),Non-Domestic Rates,910.00,0020015602,181910,000002,DD03
05/04/2018,Tiverton,Mid Devon District Council,P/1611769(2018/2019),Non-Domestic Rates,910.00,0020015602,181911,000002,DD03
05/04/2018,Tiverton,Mid Devon District Council,P/1611769(2018/2019),Non-Domestic Rates,910.00,0020015602,181912,000002,DD03
25/04/2018,Operational Assets Management,A T S Euromaster Ltd,TYRES AND REPAIRS,Tyres & Tubes,904.48,0055028187,181901,000005,FA03
23/04/2018,Estates Strategy,King Partnership,Camelshead - High Level Cost Plan for,External Prof Support/Advice,900.00,0070034565,181901,000001,HJ02
19/04/2018,Chelston Vehicle Engineering,Harry Moore Commercials,CHECK & REPLACE TACHO  (CDO3060),Contractor Repair,880.63,0057018733,181901,000005,FA23
11/04/2018,Mobile data terminals in appli,Centerprise,120 x 24V Lind PSU (CF-LND8024FD) @ 88,Miscellaneous Fees,880.00,0072013081,181901,000001,YC09
24/04/2018,ICT Delivery,EE Limited,EE Feb Inv 01269948300,ICT Mobile Telephony Service,871.70,0072013157,181901,000005,HF29
05/04/2018,Seaton,East Devon District Council,P/30071121(2018/19),Non-Domestic Rates,861.00,0020015604,181902,000002,DD03
05/04/2018,Seaton,East Devon District Council,P/30071121(2018/19),Non-Domestic Rates,861.00,0020015604,181903,000002,DD03
05/04/2018,Seaton,East Devon District Council,P/30071121(2018/19),Non-Domestic Rates,861.00,0020015604,181904,000002,DD03
05/04/2018,Seaton,East Devon District Council,P/30071121(2018/19),Non-Domestic Rates,861.00,0020015604,181905,000002,DD03
05/04/2018,Seaton,East Devon District Council,P/30071121(2018/19),Non-Domestic Rates,861.00,0020015604,181906,000002,DD03
05/04/2018,Seaton,East Devon District Council,P/30071121(2018/19),Non-Domestic Rates,861.00,0020015604,181907,000002,DD03
05/04/2018,Seaton,East Devon District Council,P/30071121(2018/19),Non-Domestic Rates,861.00,0020015604,181908,000002,DD03
05/04/2018,Seaton,East Devon District Council,P/30071121(2018/19),Non-Domestic Rates,861.00,0020015604,181909,000002,DD03
05/04/2018,Seaton,East Devon District Council,P/30071121(2018/19),Non-Domestic Rates,861.00,0020015604,181910,000002,DD03
05/04/2018,Seaton,East Devon District Council,P/30071121(2018/19),Non-Domestic Rates,860.38,0020015604,181901,000005,DD03
16/04/2018,Human Resources,Exeter Physio,Part 2 of Mach invoice for,Occupational Health Unit,855.00,0060058737,181901,000002,LA09
06/04/2018,Response Policy & Specialist C,Admiral Trailers Ltd,1 x TL400 Bunked Trailer inc of Special,Specialist Rescue Equipment,850.00,0060058645,181901,000005,HC02
16/04/2018,Fire Safety Training School,Buckfast Abbey Conference Centre,Room 10 & 11 April 2018. Max 16,Fire Protection Training Exter,841.80,0060058730,181901,000005,AE03
13/04/2018,ICT Delivery,IBM United Kingdom Ltd,1 x SPSS Text Analytics @ 834,ICT BI Systems Support Service,834.00,0072013138,181901,000005,HA45
25/04/2018,Operational Assets Management,Weston Recovery Services,RECOVER FROM CASTLE CARY TO ELECTRO,Recovery Charges,825.00,0057018779,181901,000005,FA34
06/04/2018,Cheddar Fire Station,Sedgemoor District Council,P/7151200568003284,Non-Domestic Rates,818.00,0080012289,181902,000002,DD03
06/04/2018,Cheddar Fire Station,Sedgemoor District Council,P/7151200568003284,Non-Domestic Rates,818.00,0080012289,181903,000002,DD03
06/04/2018,Cheddar Fire Station,Sedgemoor District Council,P/7151200568003284,Non-Domestic Rates,818.00,0080012289,181904,000002,DD03
06/04/2018,Cheddar Fire Station,Sedgemoor District Council,P/7151200568003284,Non-Domestic Rates,818.00,0080012289,181905,000002,DD03
06/04/2018,Cheddar Fire Station,Sedgemoor District Council,P/7151200568003284,Non-Domestic Rates,818.00,0080012289,181906,000002,DD03
06/04/2018,Cheddar Fire Station,Sedgemoor District Council,P/7151200568003284,Non-Domestic Rates,818.00,0080012289,181907,000002,DD03
06/04/2018,Cheddar Fire Station,Sedgemoor District Council,P/7151200568003284,Non-Domestic Rates,818.00,0080012289,181908,000002,DD03
06/04/2018,Cheddar Fire Station,Sedgemoor District Council,P/7151200568003284,Non-Domestic Rates,818.00,0080012289,181909,000002,DD03
06/04/2018,Cheddar Fire Station,Sedgemoor District Council,P/7151200568003284,Non-Domestic Rates,818.00,0080012289,181910,000002,DD03
06/04/2018,Cheddar Fire Station,Sedgemoor District Council,P/7151200568003284,Non-Domestic Rates,816.91,0080012289,181901,000005,DD03
09/04/2018,Princetown,West Devon Borough Council,P/300043615.,Non-Domestic Rates,814.22,0025017284,181901,000005,DD03
09/04/2018,Princetown,West Devon Borough Council,P/300043615.,Non-Domestic Rates,813.00,0025017284,181902,000002,DD03
09/04/2018,Princetown,West Devon Borough Council,P/300043615.,Non-Domestic Rates,813.00,0025017284,181903,000002,DD03
09/04/2018,Princetown,West Devon Borough Council,P/300043615.,Non-Domestic Rates,813.00,0025017284,181904,000002,DD03
09/04/2018,Princetown,West Devon Borough Council,P/300043615.,Non-Domestic Rates,813.00,0025017284,181905,000002,DD03
09/04/2018,Princetown,West Devon Borough Council,P/300043615.,Non-Domestic Rates,813.00,0025017284,181906,000002,DD03
09/04/2018,Princetown,West Devon Borough Council,P/300043615.,Non-Domestic Rates,813.00,0025017284,181907,000002,DD03
09/04/2018,Princetown,West Devon Borough Council,P/300043615.,Non-Domestic Rates,813.00,0025017284,181908,000002,DD03
09/04/2018,Princetown,West Devon Borough Council,P/300043615.,Non-Domestic Rates,813.00,0025017284,181909,000002,DD03
09/04/2018,Princetown,West Devon Borough Council,P/300043615.,Non-Domestic Rates,813.00,0025017284,181910,000002,DD03
24/04/2018,Democratic Services,Plymouth City Council,Legal services provided by Plymouth CC,Legal Services,807.50,0060058831,181901,000005,LA02
27/04/2018,Fire Safety Training School,Xact Consultancy and Training Limited,L4 Auditing Complex,Fire Protection Training Exter,790.00,0060058868,181901,000005,AE03
04/04/2018,Bideford,HAG Shutters & Grilles Limited,Bideford - All as above but to 3-No,Planned Maint Proj Contractor,780.78,0070034437,181901,000005,DA05
10/04/2018,Witheridge,North Devon District Council,P/93438080(2018/2019),Non-Domestic Rates,775.00,0010012460,181902,000002,DD03
10/04/2018,Witheridge,North Devon District Council,P/93438080(2018/2019),Non-Domestic Rates,775.00,0010012460,181903,000002,DD03
10/04/2018,Witheridge,North Devon District Council,P/93438080(2018/2019),Non-Domestic Rates,775.00,0010012460,181904,000002,DD03
10/04/2018,Witheridge,North Devon District Council,P/93438080(2018/2019),Non-Domestic Rates,775.00,0010012460,181905,000002,DD03
10/04/2018,Witheridge,North Devon District Council,P/93438080(2018/2019),Non-Domestic Rates,775.00,0010012460,181906,000002,DD03
10/04/2018,Witheridge,North Devon District Council,P/93438080(2018/2019),Non-Domestic Rates,775.00,0010012460,181907,000002,DD03
10/04/2018,Witheridge,North Devon District Council,P/93438080(2018/2019),Non-Domestic Rates,775.00,0010012460,181908,000002,DD03
10/04/2018,Witheridge,North Devon District Council,P/93438080(2018/2019),Non-Domestic Rates,775.00,0010012460,181909,000002,DD03
10/04/2018,Witheridge,North Devon District Council,P/93438080(2018/2019),Non-Domestic Rates,775.00,0010012460,181910,000002,DD03
10/04/2018,Chagford,West Devon Borough Council,P/300014204(2018/19),Non-Domestic Rates,775.00,0015014974,181902,000002,DD03
10/04/2018,Chagford,West Devon Borough Council,P/300014204(2018/19),Non-Domestic Rates,775.00,0015014974,181903,000002,DD03
10/04/2018,Chagford,West Devon Borough Council,P/300014204(2018/19),Non-Domestic Rates,775.00,0015014974,181904,000002,DD03
10/04/2018,Chagford,West Devon Borough Council,P/300014204(2018/19),Non-Domestic Rates,775.00,0015014974,181905,000002,DD03
10/04/2018,Chagford,West Devon Borough Council,P/300014204(2018/19),Non-Domestic Rates,775.00,0015014974,181906,000002,DD03
10/04/2018,Chagford,West Devon Borough Council,P/300014204(2018/19),Non-Domestic Rates,775.00,0015014974,181907,000002,DD03
10/04/2018,Chagford,West Devon Borough Council,P/300014204(2018/19),Non-Domestic Rates,775.00,0015014974,181908,000002,DD03
10/04/2018,Chagford,West Devon Borough Council,P/300014204(2018/19),Non-Domestic Rates,775.00,0015014974,181909,000002,DD03
10/04/2018,Chagford,West Devon Borough Council,P/300014204(2018/19),Non-Domestic Rates,775.00,0015014974,181910,000002,DD03
10/04/2018,Witheridge,North Devon District Council,P/93438080(2018/2019),Non-Domestic Rates,773.44,0010012460,181901,000006,DD03
10/04/2018,Chagford,West Devon Borough Council,P/300014204(2018/19),Non-Domestic Rates,773.44,0015014974,181901,000004,DD03
11/04/2018,Academy Learning Support,Pro AV,The supply of LED studio lighting,Audio Visual Equipment,770.00,0030029122,181901,000005,HA02
24/04/2018,Barnstaple,I J Cannings & Son Ltd,Barnstaple - Cooker Repairs,Unforseen Mechanical Contracto,766.20,0070034553,181901,000005,DA02
13/04/2018,FF Fitness Monitor & Support,Automotive Leasing Limited,KV11 YPC 01-02-2018 - 31-01-2019,Lease Car Contribution Admin,761.56,0040014015,181901,000001,FE72
13/04/2018,FF Fitness Monitor & Support,Automotive Leasing Limited,KV11 YOT 01-02-2018 - 31-01-2019,Lease Car Contribution Admin,760.23,0040014017,181901,000001,FE72
23/04/2018,FF Fitness Monitor & Support,Automotive Leasing Limited,KV11 YPA 01-02-2018 - 31-01-2019,Lease Car Contribution Admin,760.23,0040014028,181901,000001,FE72
23/04/2018,FF Fitness Monitor & Support,Automotive Leasing Limited,KV11 YNP 01-02-2018 - 31-01-2019,Lease Car Contribution Admin,760.23,0040014029,181901,000001,FE72
25/04/2018,Chelston Vehicle Engineering,Trojan Garage Equipment Services Ltd,CONTRACT MAINTENANCE & CALIBRATION,Garage Equipment,754.57,0057018775,181901,000005,FA01
10/04/2018,ICT Delivery,PageOne Communications Ltd,One off setup charge = 750,ICT Paging Service,750.00,0072013127,181901,000005,HF02
17/04/2018,Human Resources,MHR International UK Limited,Payroll Consultant Charges,Finance Services,749.00,0060058749,181901,000005,LA05
09/04/2018,ICT Delivery,,AV PARTMASTER,ICT Desktop Service,749.00,0100015824,181901,000003,HA20
06/04/2018,Dulverton,West Somerset Council,P/80001353(2018/19),Non-Domestic Rates,747.46,0080012282,181901,000004,DD03
13/04/2018,Yeovil,Cowley's Building & Maintenance Ltd,Yeovil - Rebuild Wall,Unforseen Building Contractor,747.38,0070034490,181901,000005,DA01
06/04/2018,Dulverton,West Somerset Council,P/80001353(2018/19),Non-Domestic Rates,746.00,0080012282,181902,000002,DD03
06/04/2018,Dulverton,West Somerset Council,P/80001353(2018/19),Non-Domestic Rates,746.00,0080012282,181903,000002,DD03
06/04/2018,Dulverton,West Somerset Council,P/80001353(2018/19),Non-Domestic Rates,746.00,0080012282,181904,000002,DD03
06/04/2018,Dulverton,West Somerset Council,P/80001353(2018/19),Non-Domestic Rates,746.00,0080012282,181905,000002,DD03
06/04/2018,Dulverton,West Somerset Council,P/80001353(2018/19),Non-Domestic Rates,746.00,0080012282,181906,000002,DD03
06/04/2018,Dulverton,West Somerset Council,P/80001353(2018/19),Non-Domestic Rates,746.00,0080012282,181907,000002,DD03
06/04/2018,Dulverton,West Somerset Council,P/80001353(2018/19),Non-Domestic Rates,746.00,0080012282,181908,000002,DD03
06/04/2018,Dulverton,West Somerset Council,P/80001353(2018/19),Non-Domestic Rates,746.00,0080012282,181909,000002,DD03
06/04/2018,Dulverton,West Somerset Council,P/80001353(2018/19),Non-Domestic Rates,746.00,0080012282,181910,000002,DD03
10/04/2018,Woolacombe,North Devon District Council,P/93438062(2018/2019),Non-Domestic Rates,732.00,0010012461,181902,000002,DD03
10/04/2018,Woolacombe,North Devon District Council,P/93438062(2018/2019),Non-Domestic Rates,732.00,0010012461,181903,000002,DD03
10/04/2018,Woolacombe,North Devon District Council,P/93438062(2018/2019),Non-Domestic Rates,732.00,0010012461,181904,000002,DD03
10/04/2018,Woolacombe,North Devon District Council,P/93438062(2018/2019),Non-Domestic Rates,732.00,0010012461,181905,000002,DD03
10/04/2018,Woolacombe,North Devon District Council,P/93438062(2018/2019),Non-Domestic Rates,732.00,0010012461,181906,000002,DD03
10/04/2018,Woolacombe,North Devon District Council,P/93438062(2018/2019),Non-Domestic Rates,732.00,0010012461,181907,000002,DD03
10/04/2018,Woolacombe,North Devon District Council,P/93438062(2018/2019),Non-Domestic Rates,732.00,0010012461,181908,000002,DD03
10/04/2018,Woolacombe,North Devon District Council,P/93438062(2018/2019),Non-Domestic Rates,732.00,0010012461,181909,000002,DD03
10/04/2018,Woolacombe,North Devon District Council,P/93438062(2018/2019),Non-Domestic Rates,732.00,0010012461,181910,000002,DD03
06/04/2018,60 Crownhill Building,Plymouth City Council,P/130203776557879,Non-Domestic Rates,732.00,0070034465,181901,000006,DD03
06/04/2018,60 Crownhill Building,Plymouth City Council,P/130203776557879,Non-Domestic Rates,732.00,0070034465,181902,000002,DD03
06/04/2018,60 Crownhill Building,Plymouth City Council,P/130203776557879,Non-Domestic Rates,732.00,0070034465,181903,000002,DD03
06/04/2018,60 Crownhill Building,Plymouth City Council,P/130203776557879,Non-Domestic Rates,732.00,0070034465,181904,000002,DD03
06/04/2018,60 Crownhill Building,Plymouth City Council,P/130203776557879,Non-Domestic Rates,732.00,0070034465,181905,000002,DD03
06/04/2018,60 Crownhill Building,Plymouth City Council,P/130203776557879,Non-Domestic Rates,732.00,0070034465,181906,000002,DD03
06/04/2018,60 Crownhill Building,Plymouth City Council,P/130203776557879,Non-Domestic Rates,732.00,0070034465,181907,000002,DD03
06/04/2018,60 Crownhill Building,Plymouth City Council,P/130203776557879,Non-Domestic Rates,732.00,0070034465,181908,000002,DD03
06/04/2018,60 Crownhill Building,Plymouth City Council,P/130203776557879,Non-Domestic Rates,732.00,0070034465,181909,000002,DD03
06/04/2018,60 Crownhill Building,Plymouth City Council,P/130203776557879,Non-Domestic Rates,732.00,0070034465,181910,000002,DD03
10/04/2018,Woolacombe,North Devon District Council,P/93438062(2018/2019),Non-Domestic Rates,729.97,0010012461,181901,000005,DD03
10/04/2018,Lynton,North Devon District Council,P/93438483(2018/2019),Non-Domestic Rates,721.48,0010012464,181901,000005,DD03
10/04/2018,Moretonhampstead,Teignbridge District Council,P/30045932(2018/2019),Non-Domestic Rates,721.48,0015014977,181901,000005,DD03
25/04/2018,Chelston Vehicle Engineering,Godiva Ltd,PUMP REPAIR  (CMT3170),Contractor Repair,719.46,0057018759,181901,000005,FA23
10/04/2018,Lynton,North Devon District Council,P/93438483(2018/2019),Non-Domestic Rates,717.00,0010012464,181902,000002,DD03
10/04/2018,Lynton,North Devon District Council,P/93438483(2018/2019),Non-Domestic Rates,717.00,0010012464,181903,000002,DD03
10/04/2018,Lynton,North Devon District Council,P/93438483(2018/2019),Non-Domestic Rates,717.00,0010012464,181904,000002,DD03
10/04/2018,Lynton,North Devon District Council,P/93438483(2018/2019),Non-Domestic Rates,717.00,0010012464,181905,000002,DD03
10/04/2018,Lynton,North Devon District Council,P/93438483(2018/2019),Non-Domestic Rates,717.00,0010012464,181906,000002,DD03
10/04/2018,Lynton,North Devon District Council,P/93438483(2018/2019),Non-Domestic Rates,717.00,0010012464,181907,000002,DD03
10/04/2018,Lynton,North Devon District Council,P/93438483(2018/2019),Non-Domestic Rates,717.00,0010012464,181908,000002,DD03
10/04/2018,Lynton,North Devon District Council,P/93438483(2018/2019),Non-Domestic Rates,717.00,0010012464,181909,000002,DD03
10/04/2018,Lynton,North Devon District Council,P/93438483(2018/2019),Non-Domestic Rates,717.00,0010012464,181910,000002,DD03
10/04/2018,Moretonhampstead,Teignbridge District Council,P/30045932(2018/2019),Non-Domestic Rates,717.00,0015014977,181902,000002,DD03
10/04/2018,Moretonhampstead,Teignbridge District Council,P/30045932(2018/2019),Non-Domestic Rates,717.00,0015014977,181903,000002,DD03
10/04/2018,Moretonhampstead,Teignbridge District Council,P/30045932(2018/2019),Non-Domestic Rates,717.00,0015014977,181904,000002,DD03
10/04/2018,Moretonhampstead,Teignbridge District Council,P/30045932(2018/2019),Non-Domestic Rates,717.00,0015014977,181905,000002,DD03
10/04/2018,Moretonhampstead,Teignbridge District Council,P/30045932(2018/2019),Non-Domestic Rates,717.00,0015014977,181906,000002,DD03
10/04/2018,Moretonhampstead,Teignbridge District Council,P/30045932(2018/2019),Non-Domestic Rates,717.00,0015014977,181907,000002,DD03
10/04/2018,Moretonhampstead,Teignbridge District Council,P/30045932(2018/2019),Non-Domestic Rates,717.00,0015014977,181908,000002,DD03
10/04/2018,Moretonhampstead,Teignbridge District Council,P/30045932(2018/2019),Non-Domestic Rates,717.00,0015014977,181909,000002,DD03
10/04/2018,Moretonhampstead,Teignbridge District Council,P/30045932(2018/2019),Non-Domestic Rates,717.00,0015014977,181910,000002,DD03
30/04/2018,Bideford,Abacus Drainage Services,Bideford - Blocked drains,Unforseen Building Contractor,712.50,0070034597,181901,000005,DA01
16/04/2018,Crownhill Vehicle Engineering,MAN Truck & Bus Ltd,PCL3433 - WA09 KLM - BRAKE LINING SET X,Direct Replacmnt Parts-Defects,709.16,0055028175,181901,000005,FA14
09/04/2018,ICT Delivery,Digital ID Ltd,Estates - Lanyards,ICT Building Acc Control Serv,704.95,0070034476,181901,000005,HF08
04/04/2018,Response Policy & Specialist C,Rig Systems Limited,1x Ferno Titan SS as per quote QU-0125,Specialist Rescue Equipment,703.96,0060058536,181901,000008,HC02
04/04/2018,Dulverton,Devon Commercial Stationers,Lynstock Heavy Duty Meeting/Visitor,Standard Equipment,702.00,0080012276,181901,000006,HA01
16/04/2018,Public Relations,,DEVON COUNTY AGRICTRL,Partnerships,699.84,0100016030,181901,000002,HJ03
27/04/2018,Insurance & Risk,Nationwide Crash Repair Centre Ltd,FM17/001779,Vehicle Ins Claims (+ Excess),696.00,0040014025,181901,000005,FC03
09/04/2018,Fire Safety Training School,,EAST CORNWALL TRADING,Standard Equipment,693.60,0100016057,181901,000002,HA01
25/04/2018,Fire Behaviour School,Brunel Road Timber Limited,75 Attack Boards cup into 4's for Villa,Timber Costs,692.25,0030029159,181901,000005,HA41
10/04/2018,Dawlish,Teignbridge District Council,P/30039347(2018/2019),Non-Domestic Rates,677.46,0015014976,181901,000006,DD03
10/04/2018,Dawlish,Teignbridge District Council,P/30039347(2018/2019),Non-Domestic Rates,676.00,0015014976,181902,000002,DD03
10/04/2018,Dawlish,Teignbridge District Council,P/30039347(2018/2019),Non-Domestic Rates,676.00,0015014976,181903,000002,DD03
10/04/2018,Dawlish,Teignbridge District Council,P/30039347(2018/2019),Non-Domestic Rates,676.00,0015014976,181904,000002,DD03
10/04/2018,Dawlish,Teignbridge District Council,P/30039347(2018/2019),Non-Domestic Rates,676.00,0015014976,181905,000002,DD03
10/04/2018,Dawlish,Teignbridge District Council,P/30039347(2018/2019),Non-Domestic Rates,676.00,0015014976,181906,000002,DD03
10/04/2018,Dawlish,Teignbridge District Council,P/30039347(2018/2019),Non-Domestic Rates,676.00,0015014976,181907,000002,DD03
10/04/2018,Dawlish,Teignbridge District Council,P/30039347(2018/2019),Non-Domestic Rates,676.00,0015014976,181908,000002,DD03
10/04/2018,Dawlish,Teignbridge District Council,P/30039347(2018/2019),Non-Domestic Rates,676.00,0015014976,181909,000002,DD03
10/04/2018,Dawlish,Teignbridge District Council,P/30039347(2018/2019),Non-Domestic Rates,676.00,0015014976,181910,000002,DD03
24/04/2018,Democratic Services,Plymouth City Council,Legal services provided by Plymouth CC,Legal Services,671.50,0060058821,181901,000005,LA02
05/04/2018,Axminster,East Devon District Council,P/30328655(2018/19),Non-Domestic Rates,660.53,0020015612,181901,000005,DD03
13/04/2018,FF Fitness Monitor & Support,Automotive Leasing Limited,KV11 YOW 01-02-2018 - 31-01-2019,Lease Car Contribution Admin,660.23,0040014016,181901,000001,FE72
11/04/2018,Tavistock,I J Cannings & Son Ltd,Tavistock - Defective heating,Unforseen Mechanical Contracto,660.11,0070034475,181901,000005,DA02
05/04/2018,Axminster,East Devon District Council,P/30328655(2018/19),Non-Domestic Rates,660.00,0020015612,181902,000002,DD03
05/04/2018,Axminster,East Devon District Council,P/30328655(2018/19),Non-Domestic Rates,660.00,0020015612,181903,000002,DD03
05/04/2018,Axminster,East Devon District Council,P/30328655(2018/19),Non-Domestic Rates,660.00,0020015612,181904,000002,DD03
05/04/2018,Axminster,East Devon District Council,P/30328655(2018/19),Non-Domestic Rates,660.00,0020015612,181905,000002,DD03
05/04/2018,Axminster,East Devon District Council,P/30328655(2018/19),Non-Domestic Rates,660.00,0020015612,181906,000002,DD03
05/04/2018,Axminster,East Devon District Council,P/30328655(2018/19),Non-Domestic Rates,660.00,0020015612,181907,000002,DD03
05/04/2018,Axminster,East Devon District Council,P/30328655(2018/19),Non-Domestic Rates,660.00,0020015612,181908,000002,DD03
05/04/2018,Axminster,East Devon District Council,P/30328655(2018/19),Non-Domestic Rates,660.00,0020015612,181909,000002,DD03
05/04/2018,Axminster,East Devon District Council,P/30328655(2018/19),Non-Domestic Rates,660.00,0020015612,181910,000002,DD03
24/04/2018,CS Protection,CFOA (Services) Ltd,NFCC Spring Conference,Seminars/Conferences,660.00,0060058812,181901,000005,AE13
05/04/2018,Uniforms PPE,W M Sugden & Sons Ltd,MALE CARGO TROUSERS (BLACK),Workwear,650.75,0085016721,181901,000004,HG03
10/04/2018,Exeter Group,External Supplier of Scrap Cars,Scrap Cars for RTC Exercise/Event,Scrap Cars,650.00,0020015621,181901,000005,DC05
10/04/2018,Information,CIPFA,CIPFA Stats Fire Internet Access,Publications/Subscriptions,650.00,0060058672,181901,000005,JA04
04/04/2018,Uniforms PPE,W M Sugden & Sons Ltd,MALE CARGO TROUSERS (BLACK),Workwear,649.50,0085016718,181901,000004,HG03
13/04/2018,60 Crownhill Building,South West Water Ltd,60 Crownhill Road - Water & Sewage,Water/Sewerage Rates,648.99,0070034486,181901,000002,DD02
09/04/2018,Response Resourcing,DFS Furniture,DFS FURNITURE,Standard Equipment,648.33,0100016168,181901,000003,HA01
06/04/2018,Nether Stowey,Sedgemoor District Council,P/7350610528003288,Non-Domestic Rates,647.93,0080012281,181901,000005,DD03
06/04/2018,Nether Stowey,Sedgemoor District Council,P/7350610528003288,Non-Domestic Rates,647.00,0080012281,181902,000002,DD03
06/04/2018,Nether Stowey,Sedgemoor District Council,P/7350610528003288,Non-Domestic Rates,647.00,0080012281,181903,000002,DD03
06/04/2018,Nether Stowey,Sedgemoor District Council,P/7350610528003288,Non-Domestic Rates,647.00,0080012281,181904,000002,DD03
06/04/2018,Nether Stowey,Sedgemoor District Council,P/7350610528003288,Non-Domestic Rates,647.00,0080012281,181905,000002,DD03
06/04/2018,Nether Stowey,Sedgemoor District Council,P/7350610528003288,Non-Domestic Rates,647.00,0080012281,181906,000002,DD03
06/04/2018,Nether Stowey,Sedgemoor District Council,P/7350610528003288,Non-Domestic Rates,647.00,0080012281,181907,000002,DD03
06/04/2018,Nether Stowey,Sedgemoor District Council,P/7350610528003288,Non-Domestic Rates,647.00,0080012281,181908,000002,DD03
06/04/2018,Nether Stowey,Sedgemoor District Council,P/7350610528003288,Non-Domestic Rates,647.00,0080012281,181909,000002,DD03
06/04/2018,Nether Stowey,Sedgemoor District Council,P/7350610528003288,Non-Domestic Rates,647.00,0080012281,181910,000002,DD03
10/04/2018,North Tawton,West Devon Borough Council,P/300009882(2018/19),Non-Domestic Rates,646.00,0020015625,181902,000002,DD03
10/04/2018,North Tawton,West Devon Borough Council,P/300009882(2018/19),Non-Domestic Rates,646.00,0020015625,181903,000002,DD03
10/04/2018,North Tawton,West Devon Borough Council,P/300009882(2018/19),Non-Domestic Rates,646.00,0020015625,181904,000002,DD03
10/04/2018,North Tawton,West Devon Borough Council,P/300009882(2018/19),Non-Domestic Rates,646.00,0020015625,181905,000002,DD03
10/04/2018,North Tawton,West Devon Borough Council,P/300009882(2018/19),Non-Domestic Rates,646.00,0020015625,181906,000002,DD03
10/04/2018,North Tawton,West Devon Borough Council,P/300009882(2018/19),Non-Domestic Rates,646.00,0020015625,181907,000002,DD03
10/04/2018,North Tawton,West Devon Borough Council,P/300009882(2018/19),Non-Domestic Rates,646.00,0020015625,181908,000002,DD03
10/04/2018,North Tawton,West Devon Borough Council,P/300009882(2018/19),Non-Domestic Rates,646.00,0020015625,181909,000002,DD03
10/04/2018,North Tawton,West Devon Borough Council,P/300009882(2018/19),Non-Domestic Rates,646.00,0020015625,181910,000002,DD03
09/04/2018,Light Vehicle Management,Lex Autolease Ltd,B63ALU / AMK,Lease Car Contribution Uniform,645.20,0040013997,181901,000005,FD72
27/04/2018,Insurance & Risk,Nationwide Crash Repair Centre Ltd,FM 17/001844,Vehicle Ins Claims (+ Excess),644.74,0040014026,181901,000005,FC03
10/04/2018,North Tawton,West Devon Borough Council,P/300009882(2018/19),Non-Domestic Rates,643.03,0020015625,181901,000005,DD03
18/04/2018,ICT Delivery,Computer Security Technology Ltd,Pulse Gold Support 25 Users License,ICT Network Security/Rem Acces,640.00,0072013153,181901,000005,HF09
06/04/2018,HFSC Pilot,Vision Support Services Ltd T/A,"Paid to incorrect supplier, requisition",Standard Equipment,638.00,0060058640,181901,000007,HA01
10/04/2018,Buckfastleigh,Teignbridge District Council,P/30048591(2018/2019),Non-Domestic Rates,634.54,0015014973,181901,000004,DD03
11/04/2018,Street Fire Station,Mendip District Council,P/817500340770.,Non-Domestic Rates,634.54,0080012305,181901,000005,DD03
10/04/2018,Buckfastleigh,Teignbridge District Council,P/30048591(2018/2019),Non-Domestic Rates,631.00,0015014973,181902,000002,DD03
10/04/2018,Buckfastleigh,Teignbridge District Council,P/30048591(2018/2019),Non-Domestic Rates,631.00,0015014973,181903,000002,DD03
10/04/2018,Buckfastleigh,Teignbridge District Council,P/30048591(2018/2019),Non-Domestic Rates,631.00,0015014973,181904,000002,DD03
10/04/2018,Buckfastleigh,Teignbridge District Council,P/30048591(2018/2019),Non-Domestic Rates,631.00,0015014973,181905,000002,DD03
10/04/2018,Buckfastleigh,Teignbridge District Council,P/30048591(2018/2019),Non-Domestic Rates,631.00,0015014973,181906,000002,DD03
10/04/2018,Buckfastleigh,Teignbridge District Council,P/30048591(2018/2019),Non-Domestic Rates,631.00,0015014973,181907,000002,DD03
10/04/2018,Buckfastleigh,Teignbridge District Council,P/30048591(2018/2019),Non-Domestic Rates,631.00,0015014973,181908,000002,DD03
10/04/2018,Buckfastleigh,Teignbridge District Council,P/30048591(2018/2019),Non-Domestic Rates,631.00,0015014973,181909,000002,DD03
10/04/2018,Buckfastleigh,Teignbridge District Council,P/30048591(2018/2019),Non-Domestic Rates,631.00,0015014973,181910,000002,DD03
11/04/2018,Street Fire Station,Mendip District Council,P/817500340770.,Non-Domestic Rates,631.00,0080012305,181902,000002,DD03
11/04/2018,Street Fire Station,Mendip District Council,P/817500340770.,Non-Domestic Rates,631.00,0080012305,181903,000002,DD03
11/04/2018,Street Fire Station,Mendip District Council,P/817500340770.,Non-Domestic Rates,631.00,0080012305,181904,000002,DD03
11/04/2018,Street Fire Station,Mendip District Council,P/817500340770.,Non-Domestic Rates,631.00,0080012305,181905,000002,DD03
11/04/2018,Street Fire Station,Mendip District Council,P/817500340770.,Non-Domestic Rates,631.00,0080012305,181906,000002,DD03
11/04/2018,Street Fire Station,Mendip District Council,P/817500340770.,Non-Domestic Rates,631.00,0080012305,181907,000002,DD03
11/04/2018,Street Fire Station,Mendip District Council,P/817500340770.,Non-Domestic Rates,631.00,0080012305,181908,000002,DD03
11/04/2018,Street Fire Station,Mendip District Council,P/817500340770.,Non-Domestic Rates,631.00,0080012305,181909,000002,DD03
11/04/2018,Street Fire Station,Mendip District Council,P/817500340770.,Non-Domestic Rates,631.00,0080012305,181910,000002,DD03
19/04/2018,Plymouth Community Bus,Plymouth Citybus Ltd,Carry out safety check & roller brake,Standard Equipment,625.83,0025017309,181901,000001,HA01
04/04/2018,Tiverton,Devon Commercial Stationers,IDCH0500 Club Chair Royal Blue-Black,Standard Equipment,621.60,0020015598,181901,000005,HA01
24/04/2018,Democratic Services,Plymouth City Council,Legal services provided by Plymouth CC,Legal Services,603.50,0060058840,181901,000005,LA02
16/04/2018,Procurement,The Glass Lift Ltd,Elevate Programme,Non-Uniformed Training,600.00,0060058584,181901,000003,AE14
04/04/2018,Uniforms PPE,W M Sugden & Sons Ltd,MALE CARGO TROUSERS (BLACK),Workwear,597.54,0085016715,181901,000008,HG03
30/04/2018,Dulverton,Dartmoor Tree Surgeons Ltd,Dulverton - Ash Tree Dismantle,Grounds Maint Contractors,590.00,0070034607,181901,000005,DA21
24/04/2018,Academy Learning Support,,GOMO LEARNING,ICT Application Services (Oth),588.00,0100016123,181901,000002,HA22
20/04/2018,Democratic Services,Franking Sense Ltd,Annual support contract March 18 to Feb,Postages,585.00,0060058786,181901,000005,JA05
11/04/2018,First Aid School,External Training,External Trainer costs and Travel,External Trainer Hire,580.80,0030029121,181901,000002,AE15
10/04/2018,Exmouth,External Supplier of Scrap Cars,"Scrap Cars for RTC Training for Green,",Scrap Cars,580.00,0020015615,181901,000005,DC05
16/04/2018,Response Policy & Specialist C,,NORTHERN DIVER (INTNL),Specialist Rescue Equipment,575.00,0100015905,181901,000003,HC02
10/04/2018,South Molton,North Devon District Council,P/93438124(2018/2019),Non-Domestic Rates,574.00,0010012463,181902,000002,DD03
10/04/2018,South Molton,North Devon District Council,P/93438124(2018/2019),Non-Domestic Rates,574.00,0010012463,181903,000002,DD03
10/04/2018,South Molton,North Devon District Council,P/93438124(2018/2019),Non-Domestic Rates,574.00,0010012463,181904,000002,DD03
10/04/2018,South Molton,North Devon District Council,P/93438124(2018/2019),Non-Domestic Rates,574.00,0010012463,181905,000002,DD03
10/04/2018,South Molton,North Devon District Council,P/93438124(2018/2019),Non-Domestic Rates,574.00,0010012463,181906,000002,DD03
10/04/2018,South Molton,North Devon District Council,P/93438124(2018/2019),Non-Domestic Rates,574.00,0010012463,181907,000002,DD03
10/04/2018,South Molton,North Devon District Council,P/93438124(2018/2019),Non-Domestic Rates,574.00,0010012463,181908,000002,DD03
10/04/2018,South Molton,North Devon District Council,P/93438124(2018/2019),Non-Domestic Rates,574.00,0010012463,181909,000002,DD03
10/04/2018,South Molton,North Devon District Council,P/93438124(2018/2019),Non-Domestic Rates,574.00,0010012463,181910,000002,DD03
10/04/2018,Braunton,North Devon District Council,P/93438133(2018/2019),Non-Domestic Rates,574.00,0010012471,181902,000002,DD03
10/04/2018,Braunton,North Devon District Council,P/93438133(2018/2019),Non-Domestic Rates,574.00,0010012471,181903,000002,DD03
10/04/2018,Braunton,North Devon District Council,P/93438133(2018/2019),Non-Domestic Rates,574.00,0010012471,181904,000002,DD03
10/04/2018,Braunton,North Devon District Council,P/93438133(2018/2019),Non-Domestic Rates,574.00,0010012471,181905,000002,DD03
10/04/2018,Braunton,North Devon District Council,P/93438133(2018/2019),Non-Domestic Rates,574.00,0010012471,181906,000002,DD03
10/04/2018,Braunton,North Devon District Council,P/93438133(2018/2019),Non-Domestic Rates,574.00,0010012471,181907,000002,DD03
10/04/2018,Braunton,North Devon District Council,P/93438133(2018/2019),Non-Domestic Rates,574.00,0010012471,181908,000002,DD03
10/04/2018,Braunton,North Devon District Council,P/93438133(2018/2019),Non-Domestic Rates,574.00,0010012471,181909,000002,DD03
10/04/2018,Braunton,North Devon District Council,P/93438133(2018/2019),Non-Domestic Rates,574.00,0010012471,181910,000002,DD03
10/04/2018,South Molton,North Devon District Council,P/93438124(2018/2019),Non-Domestic Rates,573.59,0010012463,181901,000005,DD03
10/04/2018,Braunton,North Devon District Council,P/93438133(2018/2019),Non-Domestic Rates,573.59,0010012471,181901,000005,DD03
09/04/2018,Light Vehicle Management,Thrifty Car & Van Rental,Hired Transport   18/12 - 15/01/18,Hired Transport,572.88,0100016061,181901,000003,FD01
05/04/2018,Tavistock,BSL Security Systems,Tavistock - Lock defective,Unforseen Building Contractor,568.50,0070034431,181901,000005,DA01
09/04/2018,Kingsbridge,South Hams District Council,P/91246227(2018/19),Non-Domestic Rates,566.79,0025017286,181901,000006,DD03
09/04/2018,Kingsbridge,South Hams District Council,P/91246227(2018/19),Non-Domestic Rates,562.00,0025017286,181902,000002,DD03
09/04/2018,Kingsbridge,South Hams District Council,P/91246227(2018/19),Non-Domestic Rates,562.00,0025017286,181903,000002,DD03
09/04/2018,Kingsbridge,South Hams District Council,P/91246227(2018/19),Non-Domestic Rates,562.00,0025017286,181904,000002,DD03
09/04/2018,Kingsbridge,South Hams District Council,P/91246227(2018/19),Non-Domestic Rates,562.00,0025017286,181905,000002,DD03
09/04/2018,Kingsbridge,South Hams District Council,P/91246227(2018/19),Non-Domestic Rates,562.00,0025017286,181906,000002,DD03
09/04/2018,Kingsbridge,South Hams District Council,P/91246227(2018/19),Non-Domestic Rates,562.00,0025017286,181907,000002,DD03
09/04/2018,Kingsbridge,South Hams District Council,P/91246227(2018/19),Non-Domestic Rates,562.00,0025017286,181908,000002,DD03
09/04/2018,Kingsbridge,South Hams District Council,P/91246227(2018/19),Non-Domestic Rates,562.00,0025017286,181909,000002,DD03
09/04/2018,Kingsbridge,South Hams District Council,P/91246227(2018/19),Non-Domestic Rates,562.00,0025017286,181910,000002,DD03
24/04/2018,Barnstaple,Kenex Engineering,Barnstaple - Investigation works,Unforseen Building Contractor,560.00,0070034549,181901,000005,DA01
11/04/2018,Castle Cary,South Somerset District Council,P/040120(2018/2019),Non-Domestic Rates,557.00,0080012296,181902,000002,DD03
11/04/2018,Castle Cary,South Somerset District Council,P/040120(2018/2019),Non-Domestic Rates,557.00,0080012296,181903,000002,DD03
11/04/2018,Castle Cary,South Somerset District Council,P/040120(2018/2019),Non-Domestic Rates,557.00,0080012296,181904,000002,DD03
11/04/2018,Castle Cary,South Somerset District Council,P/040120(2018/2019),Non-Domestic Rates,557.00,0080012296,181905,000002,DD03
11/04/2018,Castle Cary,South Somerset District Council,P/040120(2018/2019),Non-Domestic Rates,557.00,0080012296,181906,000002,DD03
11/04/2018,Castle Cary,South Somerset District Council,P/040120(2018/2019),Non-Domestic Rates,557.00,0080012296,181907,000002,DD03
11/04/2018,Castle Cary,South Somerset District Council,P/040120(2018/2019),Non-Domestic Rates,557.00,0080012296,181908,000002,DD03
11/04/2018,Castle Cary,South Somerset District Council,P/040120(2018/2019),Non-Domestic Rates,557.00,0080012296,181909,000002,DD03
11/04/2018,Castle Cary,South Somerset District Council,P/040120(2018/2019),Non-Domestic Rates,557.00,0080012296,181910,000002,DD03
09/04/2018,Modbury,South Hams District Council,P/91267586(2018/19),Non-Domestic Rates,555.00,0025017282,181902,000002,DD03
09/04/2018,Modbury,South Hams District Council,P/91267586(2018/19),Non-Domestic Rates,555.00,0025017282,181903,000002,DD03
09/04/2018,Modbury,South Hams District Council,P/91267586(2018/19),Non-Domestic Rates,555.00,0025017282,181904,000002,DD03
09/04/2018,Modbury,South Hams District Council,P/91267586(2018/19),Non-Domestic Rates,555.00,0025017282,181905,000002,DD03
09/04/2018,Modbury,South Hams District Council,P/91267586(2018/19),Non-Domestic Rates,555.00,0025017282,181906,000002,DD03
09/04/2018,Modbury,South Hams District Council,P/91267586(2018/19),Non-Domestic Rates,555.00,0025017282,181907,000002,DD03
09/04/2018,Modbury,South Hams District Council,P/91267586(2018/19),Non-Domestic Rates,555.00,0025017282,181908,000002,DD03
09/04/2018,Modbury,South Hams District Council,P/91267586(2018/19),Non-Domestic Rates,555.00,0025017282,181909,000002,DD03
09/04/2018,Modbury,South Hams District Council,P/91267586(2018/19),Non-Domestic Rates,555.00,0025017282,181910,000002,DD03
19/04/2018,Light Vehicle Management,Lex Autolease Ltd,WG63HKV/ HKW / HLJ,Lease Car Contribution Uniform,554.49,0040014027,181901,000005,FD72
11/04/2018,Castle Cary,South Somerset District Council,P/040120(2018/2019),Non-Domestic Rates,554.40,0080012296,181901,000005,DD03
09/04/2018,Modbury,South Hams District Council,P/91267586(2018/19),Non-Domestic Rates,553.90,0025017282,181901,000005,DD03
05/04/2018,Colyton,East Devon District Council,P/30090757(2018/2019),Non-Domestic Rates,551.00,0020015609,181901,000005,DD03
05/04/2018,Colyton,East Devon District Council,P/30090757(2018/2019),Non-Domestic Rates,551.00,0020015609,181902,000002,DD03
05/04/2018,Colyton,East Devon District Council,P/30090757(2018/2019),Non-Domestic Rates,551.00,0020015609,181903,000002,DD03
05/04/2018,Colyton,East Devon District Council,P/30090757(2018/2019),Non-Domestic Rates,551.00,0020015609,181904,000002,DD03
05/04/2018,Colyton,East Devon District Council,P/30090757(2018/2019),Non-Domestic Rates,551.00,0020015609,181905,000002,DD03
05/04/2018,Colyton,East Devon District Council,P/30090757(2018/2019),Non-Domestic Rates,551.00,0020015609,181906,000002,DD03
05/04/2018,Colyton,East Devon District Council,P/30090757(2018/2019),Non-Domestic Rates,551.00,0020015609,181907,000002,DD03
05/04/2018,Colyton,East Devon District Council,P/30090757(2018/2019),Non-Domestic Rates,551.00,0020015609,181908,000002,DD03
05/04/2018,Colyton,East Devon District Council,P/30090757(2018/2019),Non-Domestic Rates,551.00,0020015609,181909,000002,DD03
05/04/2018,Colyton,East Devon District Council,P/30090757(2018/2019),Non-Domestic Rates,551.00,0020015609,181910,000002,DD03
10/04/2018,Light Vehicle Management,Mobile Windscreens Ltd,Windscreen Damage on WJ66 JUV,Windscreen Damage,551.00,0040014005,181901,000005,FC08
06/04/2018,Porlock,West Somerset Council,P/80011210(2018/19),Non-Domestic Rates,551.00,0080012284,181901,000004,DD03
06/04/2018,Porlock,West Somerset Council,P/80011210(2018/19),Non-Domestic Rates,551.00,0080012284,181902,000002,DD03
06/04/2018,Porlock,West Somerset Council,P/80011210(2018/19),Non-Domestic Rates,551.00,0080012284,181903,000002,DD03
06/04/2018,Porlock,West Somerset Council,P/80011210(2018/19),Non-Domestic Rates,551.00,0080012284,181904,000002,DD03
06/04/2018,Porlock,West Somerset Council,P/80011210(2018/19),Non-Domestic Rates,551.00,0080012284,181905,000002,DD03
06/04/2018,Porlock,West Somerset Council,P/80011210(2018/19),Non-Domestic Rates,551.00,0080012284,181906,000002,DD03
06/04/2018,Porlock,West Somerset Council,P/80011210(2018/19),Non-Domestic Rates,551.00,0080012284,181907,000002,DD03
06/04/2018,Porlock,West Somerset Council,P/80011210(2018/19),Non-Domestic Rates,551.00,0080012284,181908,000002,DD03
06/04/2018,Porlock,West Somerset Council,P/80011210(2018/19),Non-Domestic Rates,551.00,0080012284,181909,000002,DD03
06/04/2018,Porlock,West Somerset Council,P/80011210(2018/19),Non-Domestic Rates,551.00,0080012284,181910,000002,DD03
11/04/2018,Insurance & Risk,Bryan James & Co Ltd,Ceremonial Unit Insurance renewal 2018,Insurance Premiums,548.96,0060058679,181901,000002,JC01
10/04/2018,Yeovil,Environmental Services,Yeovil - Asbestos Removal,Unforseen Building Contractor,545.00,0070034478,181901,000005,DA01
11/04/2018,Tavistock,BSL Security Systems,Tavistock - Electronic lock defective,Unforseen Electrical Contracto,539.51,0070034435,181901,000005,DA03
05/04/2018,Bampton,Mid Devon District Council,P/162428X(2018/19),Non-Domestic Rates,539.03,0020015611,181901,000005,DD03
05/04/2018,Bampton,Mid Devon District Council,P/162428X(2018/19),Non-Domestic Rates,538.00,0020015611,181902,000002,DD03
05/04/2018,Bampton,Mid Devon District Council,P/162428X(2018/19),Non-Domestic Rates,538.00,0020015611,181903,000002,DD03
05/04/2018,Bampton,Mid Devon District Council,P/162428X(2018/19),Non-Domestic Rates,538.00,0020015611,181904,000002,DD03
05/04/2018,Bampton,Mid Devon District Council,P/162428X(2018/19),Non-Domestic Rates,538.00,0020015611,181905,000002,DD03
05/04/2018,Bampton,Mid Devon District Council,P/162428X(2018/19),Non-Domestic Rates,538.00,0020015611,181906,000002,DD03
05/04/2018,Bampton,Mid Devon District Council,P/162428X(2018/19),Non-Domestic Rates,538.00,0020015611,181907,000002,DD03
05/04/2018,Bampton,Mid Devon District Council,P/162428X(2018/19),Non-Domestic Rates,538.00,0020015611,181908,000002,DD03
05/04/2018,Bampton,Mid Devon District Council,P/162428X(2018/19),Non-Domestic Rates,538.00,0020015611,181909,000002,DD03
05/04/2018,Bampton,Mid Devon District Council,P/162428X(2018/19),Non-Domestic Rates,538.00,0020015611,181910,000002,DD03
05/04/2018,Bampton,Mid Devon District Council,P/162428X(2018/19),Non-Domestic Rates,538.00,0020015611,181911,000002,DD03
05/04/2018,Bampton,Mid Devon District Council,P/162428X(2018/19),Non-Domestic Rates,538.00,0020015611,181912,000002,DD03
17/04/2018,Human Resources,MHR International UK Limited,Payroll Consultant Charges,Finance Services,534.52,0060058747,181901,000005,LA05
10/04/2018,ICT Delivery,,3 Bill Feb and March 2018,ICT Mobile Telephony Service,532.96,0100016092,181901,000003,HF29
04/04/2018,Hydrants Maintenance,South West Water,17105-32-57908,Hydrants Maintenance,531.53,0040013973,181901,000005,HE02
17/04/2018,Teignmouth,HAG Shutters & Grilles Limited,Teignmouth - Appliance Bay Door Window,Planned Maint Proj Contractor,529.68,0070034519,181901,000005,DA05
25/04/2018,ICT Delivery,Idhammar Systems Ltd,Miquest Upgrade as per DEV70102,ICT Fleet Management Sys Supp,528.50,0072013154,181901,000005,HA49
10/04/2018,Brixham,Torbay Council,P/220700013200(2018/19,Non-Domestic Rates,525.00,0015014972,181902,000002,DD03
10/04/2018,Brixham,Torbay Council,P/220700013200(2018/19,Non-Domestic Rates,525.00,0015014972,181903,000002,DD03
10/04/2018,Brixham,Torbay Council,P/220700013200(2018/19,Non-Domestic Rates,525.00,0015014972,181904,000002,DD03
10/04/2018,Brixham,Torbay Council,P/220700013200(2018/19,Non-Domestic Rates,525.00,0015014972,181905,000002,DD03
10/04/2018,Brixham,Torbay Council,P/220700013200(2018/19,Non-Domestic Rates,525.00,0015014972,181906,000002,DD03
10/04/2018,Brixham,Torbay Council,P/220700013200(2018/19,Non-Domestic Rates,525.00,0015014972,181907,000002,DD03
10/04/2018,Brixham,Torbay Council,P/220700013200(2018/19,Non-Domestic Rates,525.00,0015014972,181908,000002,DD03
10/04/2018,Brixham,Torbay Council,P/220700013200(2018/19,Non-Domestic Rates,525.00,0015014972,181909,000002,DD03
10/04/2018,Brixham,Torbay Council,P/220700013200(2018/19,Non-Domestic Rates,525.00,0015014972,181910,000002,DD03
10/04/2018,Brixham,Torbay Council,P/220700013200(2018/19,Non-Domestic Rates,520.27,0015014972,181901,000005,DD03
10/04/2018,Torrington,Torridge District Council,P/102409590552932:,Non-Domestic Rates,517.00,0010012462,181902,000002,DD03
10/04/2018,Torrington,Torridge District Council,P/102409590552932:,Non-Domestic Rates,517.00,0010012462,181903,000002,DD03
10/04/2018,Torrington,Torridge District Council,P/102409590552932:,Non-Domestic Rates,517.00,0010012462,181904,000002,DD03
10/04/2018,Torrington,Torridge District Council,P/102409590552932:,Non-Domestic Rates,517.00,0010012462,181905,000002,DD03
10/04/2018,Torrington,Torridge District Council,P/102409590552932:,Non-Domestic Rates,517.00,0010012462,181906,000002,DD03
10/04/2018,Torrington,Torridge District Council,P/102409590552932:,Non-Domestic Rates,517.00,0010012462,181907,000002,DD03
10/04/2018,Torrington,Torridge District Council,P/102409590552932:,Non-Domestic Rates,517.00,0010012462,181908,000002,DD03
10/04/2018,Torrington,Torridge District Council,P/102409590552932:,Non-Domestic Rates,517.00,0010012462,181909,000002,DD03
10/04/2018,Torrington,Torridge District Council,P/102409590552932:,Non-Domestic Rates,517.00,0010012462,181910,000002,DD03
16/04/2018,Democratic Services,South West Councils,Annual associate subscription to South,Publications/Subscriptions,515.00,0060058729,181901,000005,JA04
10/04/2018,Torrington,Torridge District Council,P/102409590552932:,Non-Domestic Rates,512.63,0010012462,181901,000005,DD03
06/04/2018,Wellington,Taunton Deane Borough Council,P/8000068865(2018/19),Non-Domestic Rates,511.00,0080012288,181902,000002,DD03
06/04/2018,Wellington,Taunton Deane Borough Council,P/8000068865(2018/19),Non-Domestic Rates,511.00,0080012288,181903,000002,DD03
06/04/2018,Wellington,Taunton Deane Borough Council,P/8000068865(2018/19),Non-Domestic Rates,511.00,0080012288,181904,000002,DD03
06/04/2018,Wellington,Taunton Deane Borough Council,P/8000068865(2018/19),Non-Domestic Rates,511.00,0080012288,181905,000002,DD03
06/04/2018,Wellington,Taunton Deane Borough Council,P/8000068865(2018/19),Non-Domestic Rates,511.00,0080012288,181906,000002,DD03
06/04/2018,Wellington,Taunton Deane Borough Council,P/8000068865(2018/19),Non-Domestic Rates,511.00,0080012288,181907,000002,DD03
06/04/2018,Wellington,Taunton Deane Borough Council,P/8000068865(2018/19),Non-Domestic Rates,511.00,0080012288,181908,000002,DD03
06/04/2018,Wellington,Taunton Deane Borough Council,P/8000068865(2018/19),Non-Domestic Rates,511.00,0080012288,181909,000002,DD03
06/04/2018,Wellington,Taunton Deane Borough Council,P/8000068865(2018/19),Non-Domestic Rates,511.00,0080012288,181910,000002,DD03
06/04/2018,Wellington,Taunton Deane Borough Council,P/8000068865(2018/19),Non-Domestic Rates,509.23,0080012288,181901,000004,DD03
05/04/2018,Cullompton,Mid Devon District Council,P/1636822(2018/19),Non-Domestic Rates,504.56,0020015607,181901,000005,DD03
10/04/2018,Ilminster,South Somerset District Council,P/30031656(2018/2019),Non-Domestic Rates,502.44,0080012294,181901,000005,DD03
05/04/2018,Cullompton,Mid Devon District Council,P/1636822(2018/19),Non-Domestic Rates,502.00,0020015607,181902,000002,DD03
05/04/2018,Cullompton,Mid Devon District Council,P/1636822(2018/19),Non-Domestic Rates,502.00,0020015607,181903,000002,DD03
05/04/2018,Cullompton,Mid Devon District Council,P/1636822(2018/19),Non-Domestic Rates,502.00,0020015607,181904,000002,DD03
05/04/2018,Cullompton,Mid Devon District Council,P/1636822(2018/19),Non-Domestic Rates,502.00,0020015607,181905,000002,DD03
05/04/2018,Cullompton,Mid Devon District Council,P/1636822(2018/19),Non-Domestic Rates,502.00,0020015607,181906,000002,DD03
05/04/2018,Cullompton,Mid Devon District Council,P/1636822(2018/19),Non-Domestic Rates,502.00,0020015607,181907,000002,DD03
05/04/2018,Cullompton,Mid Devon District Council,P/1636822(2018/19),Non-Domestic Rates,502.00,0020015607,181908,000002,DD03
05/04/2018,Cullompton,Mid Devon District Council,P/1636822(2018/19),Non-Domestic Rates,502.00,0020015607,181909,000002,DD03
05/04/2018,Cullompton,Mid Devon District Council,P/1636822(2018/19),Non-Domestic Rates,502.00,0020015607,181910,000002,DD03
05/04/2018,Cullompton,Mid Devon District Council,P/1636822(2018/19),Non-Domestic Rates,502.00,0020015607,181911,000002,DD03
05/04/2018,Cullompton,Mid Devon District Council,P/1636822(2018/19),Non-Domestic Rates,502.00,0020015607,181912,000002,DD03
09/04/2018,Bridgwater,Thrifty Car & Van Rental,Consolidated to booking sheet,Hired Transport,500.75,0100016072,181901,000007,FD01
"5,141,609.24",,,,,,
